Workbook

Sheet Cover Page
D1: Add company logo
K2: Template version 25.1a (for incinerators) - 27/11/25
K4: Note that there is another version of this template available for co-incinerators
B8: Add photo
K13: Notes:
K14: This template may require adjustments by individual operators to meet specific reporting requirements as defined in the site Permit(s)
B29: Annual Performance Report 2025
B31: Permit EPR/BR4551IC
B33: Kent Enviropower Limited
B35: Allington Incinerator, Allington Quarry
B37: Kent Enviropower Limited
B39: Year: | C39: 2025
B41: Address: | C41: Laverstoke Road, Allington, Maidstone, Kent. ME16 0LE
B43: Tel: | C43: 0844 736 9990
B45: Email:
B47: Prepared by: | C47: Trevor Ellis | F47: Position: | G47: Environment Manager
B49: Approved by: | C49: Tony Stanbridge | F49: Position: | G49: General Manager
B51: Version: | C51: 1
B53: Issue Date: | C53: 31st January 2026

Sheet Facility Info
A1: =+'Cover Page'!$B$29 -> Annual Performance Report 2025 | E1: =+'Cover Page'!$B$33 -> Kent Enviropower Limited
A3: Plant Description and Design | K3: Notes:
A5: nstallation Description The Installation receives non hazardous municipal and industrial waste, recovers recyclable elements for reuse and eliminates the combustible element of the residue by burning in a fluidised bed furnace. Energy is recovered from the process and converted to electricity in place of non-renewable fossil fuels. The combustion gases are cleaned to meet the standards required by the Directive before discharge from a tall chimney. Ashes and other solid residues are removed from the installation. The Installation covers the site and the entire EfW plant including all EfW lines, waste reception, storage, on-site pre-treatment facilities, water, fuel and air supply systems, boiler, facilities for the treatment of exhaust gases, on-site facilities for treatment or storage of residues and waste water, stack, devices and systems for controlling combustion operations, recording and monitoring conditions. The Installation has a design throughput of approx 580,000 tonnes per annum with an EfW capacity approx 560,000 tonnes per annum. The transfer loading station receives food waste and clean source separated recyclables which it reloads for onward transport and recovery. There is a single waste reception followed by three independent waste treatment lines each complete with a heat recovery boiler, acid gas abatement, bag filter and a separate flue in the chimney. The heat produced from the combustion of the waste is used to generate steam in the boilers and the steam is then combined and passed to a steam turbine which generates approx 34.5 MW of electrical energy for export to the National Grid. | K5: Include summary of plant design, design capacity, no. of combustion lines, electrical and heat capacity and any other general information that describes the facility, its location and purpose
A24: Summary of Operational Processes and Procedures
A26: Raw Materials Waste is delivered to the plant in road vehicles which are weighed before proceeding to the tipping hall. This is a fully enclosed building, maintained under slight negative pressure to ensure that no odours, dust or litter can escape the building. The vehicles carry either unsorted mixed municipal waste, sorted waste for recycling or mixed recyclable waste and non recyclable waste and each tip into the appropriate section of the tipping hall. The unsorted mixed waste (black bag) is transferred by crane grab to a waste shredding line, it then moves forward through a metals extraction section where ferrous metals are removed for recycling before moving to the prepared fuel bunker. The facility also operates as a waste transfer site. It receives clean mixed recyclates and food wastes collected in the community and loads them in bulk onto their designated transport vehicles for transport off site for recovery. A crane grab in the prepared fuel bunker both mixes the waste and charges the hoppers of the three incineration lines. Hydrated lime for the flue gas cleaning process is delivered by bulk tanker and offloaded pneumatically into three 125m3 silos vented through a reverse pulse jet filter. Activated carbon for the flue gas cleaning process is stored in dedicated silos that are pneumatically filled from delivery trucks. There are three silos, one for each line, each equipped with filters to prevent dust emissions during filling. Urea, dissolved in water is stored in a fully bunded tank and is injected into the furnaces as necessary to control NOx emissions. Caustic soda for water treatment resin regeneration is delivered by bulk tanker and offloaded into a 5.5 m3 tank with scrubber, inside the demineralisation area. Hydrochloric acid for water treatment resin regeneration is delivered by bulk tanker and offloaded into a 5.5 m3 tank vented through the caustic soda scrubber in a bund outside the demineralisation area. Various other water treatment chemicals are delivered in appropriate containers and stored in bunded areas. Gas oil for the combustion chamber burners and on-site vehicles is stored in a fully bunded 150 m3 tank. Sand for the fluidised bed furnaces is stored in 3 silos each of 55 cubic meters capacity. Various maintenance materials (oils, greases, insulants, antifreezes, welding and fire fighting gases etc.) are stored in the appropriate manner. Combustion Process:- The technology employed for incineration is the ROWITEC unit which uses a fluidised bed process. The design has an inclined air distributor plate with a number of separate air supply chambers providing differential air flows across the bed, causing a revolving action. This technique promotes rapid and uniform mixing of the sand and bottom ash and ensures that heavy inert and non-combustible material migrates to the sides of the bed where they can easily be removed. An angled furnace wall above the fluidised bed zone restrains bed expansion under high fluidising air flows and so minimises particulate carry over. The elliptical patterns of air flow converge in the centre of the combustion area ensuring effective vertical and lateral turbulent mixing and high combustion efficiency and uniformity. The waste is burned on a bed consisting of sand and ash that is held in suspension by an upward flow of combustion air that circulates the combustion mixture up to the throat of the furnace. The furnace operating design is based on a thermal capacity of 53.8MW at full load and this can be achieved over the typical range of waste calorific values expected with municipal waste. The combustion air system provides the furnace with the total air requirements for fluidisation and combustion. Primary air is supplied to the bottom of the combustion chamber and fluidises the bed. This air is extracted from the waste reception and storage buildings and destroys all odours in the combustion chamber. Each furnace is equipped with two fuel oil burners for use at start-up to heat the furnace and also during extreme reductions in waste fuel calorific value when the temperature of the furnace would otherwise fall below 850 degrees Centigrade. Combustion control of the furnace will be achieved through a combination of furnace bed and freeboard temperature control, primary air flow control, oxygen control within the flue gas and furnace load. Recirculated flue gas is fed to the furnace bed as a cooling medium to control the furnace bed temperature and also to assist the control of NOx by influencing the combustion temperature conditions within the furnace. The furnace bed is managed to remove non-combustible material (bottom ash) from the bed and maintain the sand level within the optimum operating range. Bottom ashes produced in the furnace together with sand migrate down the slope of the furnace to the discharge section located at each side of the bed. The bottom ash and sand are both withdrawn from the discharge sections of the bed by two water-cooled discharge screw conveyors. Material passing out of the screw conveyors is discharged to a vibrating screen. Undersize material is returned to the sand hopper for re-use within the furnace while the oversized material is sent off site for recovery or re-use or landfill. | K26: Include summary of key processes and procedures such as (but not limited to); waste reception, control rooms, grate, bed and boiler, energy & heat generation, cooling systems, residue management, emission controls, health and safety systems, maintenance
A59: Energy Recovery Hot gases from the furnace pass through to a boiler designed to generate steam. The boiler comprises two fully water cooled radiation chambers, a single pass horizontal plain tube convective heating surface, incorporating a three stage convective superheater unit and a plain tube economiser section. The economiser is designed for high velocity gas flow to minimise the reformation of dioxins in the critical de Novo synthesis range. Steam is generated at 65 bar and a final temperature of 420 degrees Centigrade. The high pressure steam from all three boilers feeds into a common header which in turn will feed a condensing steam turbine that will generate electricity. Steam exiting the turbine will be condensed in an air cooled condenser and the condensate returned to the boilers. Gas Cleaning The plant is designed to meet the requirements of the Industrial Emissions Directive as a minimum for releases to air by a combination of main process design and operation and abatement equipment. Flue gases pass from the boiler to the gas cleaning equipment. The gas passes to an electrostatic precipitator (ESP) for the separation of ash carried over from the furnace with the flue gas. Material collected in the ESP will be discharged by means of rotary valves and chain conveyors and then pneumatically fed to the ash silos or re-injected into the flue gas cleaning system. Gases leaving the ESP enter the gas cleaning system. This comprises a circo clean reactor and bag filter system. Gases entering the circo clean reactor will be at a temperature of 190 to 230 degrees C and will come into contact with a mixture of water, hydrated lime and activated carbon that have been injected into the reactor. The reactor is designed to reduce or remove acidic pollutants such as HCl, SO2 and HF by the use of the hydrated lime and dioxins and furans, PCBs, PAHs, mercury vapour and heavy metal salts such as mercury chloride by the use of the activated carbon. The injected water enhances the reactions and cools the gas. The control system of the circo clean reactor optimises the use of reactants by balancing the feed rate with the concentration of the pollutants entering the circo clean reactor. The final stage of the gas cleaning system is the bag filter unit which separates the particulate material from the flue gas. The baghouse filter consists of compartments each of which contains a number of tubular filter bags. A thick porous layer of particulate builds on the bag surfaces to form a filter cake which efficiently removes ultra fine particles from the gas stream and the excess lime continues to react with the acid gases. Bag house residue is discharged from the compartments via the integrated buffer storage by a closed pneumatic conveying system into the reaction product silos. Silos are equipped with a filter, hopper heating and fluidisation system to assist discharge. The residue is then discharged directly into road vehicles under dust free conditions for transport off site to a licensed facility. Nitrogen oxides (NOx) abatement is achieved by the use of both flue gas recirculation (FGR) and selective non-catalytic reduction (SNCR). The SNCR is based on the injection of urea into the furnace chambers before the boilers and before the lime and carbon injection and before the gas passes to bag filters. The cleaned gas then discharges to atmosphere via three 80-metre flues in a common stack at an efflux velocity in excess of 15 ms-1 at maximum throughput. Ancillary Operations Demineralised water is required to compensate for boiler blowdown losses. A package demineralisation plant provides this water. The ion exchange resins are regenerated using sodium hydroxide and hydrochloric acid and the regeneration effluent is routed through a neutralisation tank to the collection pit for reuse where possible. Ash Handling Bottom ash, the combined boiler and ESP ash and the flue gas treatment residue (FGTR) from the bag filter system, are each sent for separate disposal off site by licensed contractors subject to waste licensing legislation. FGTR is not mixed with any other ash at any time. The bottom ash is likely to be subject to ferrous and non ferrous metals extraction by the contractors before disposal or reuse. All operations will be subject to waste licensing legislation and be tracked by the Environment Agency. At least quarterly sampling of the bottom ash will be carried out to ensure effective burn out is being achieved by testing for the “loss on ignition” of the residual ash. All other solid waste residues arising from the operation of the process will be removed from site, in enclosed containers, for disposal by suitable contractors. Liquid Effluent and Site Drainage Uncontaminated surface water from the roads and parking area that is not reused within the process will be discharged to sewer.
A86: Emissions Monitoring Emissions from the stack are continuously monitored for: particulate, carbon monoxide (CO), ammonia (NH3), sulphur dioxide (SO2), hydrogen chloride (HCl), oxygen (O2), nitrogen oxides (NOx) Nitrous Oxide (N2O) Carbon Dioxide (CO2) and volatile organic compounds (VOC). In addition periodic sampling and measurement will be carried out for metals cadmium (Cd), thallium (Tl), mercury (Hg), antimony (Sb), arsenic (As), lead (Pb), chromium (Cr), cobalt (Co), copper (Cu), manganese (Mn), nickel (Ni), vanadium (V), dioxins and furans, dioxin like PCBs and hydrogen fluoride (HF). Periodic measurements are carried out bi annually and in some instances annually.

Sheet Operational Data
A1: =+'Cover Page'!$B$29 -> Annual Performance Report 2025 | E1: =+'Cover Page'!$B$33 -> Kent Enviropower Limited
A3: Operational Data
A4: Plant Size: | B4: 560000 | D4: tonnes pa | J4: Notes:
A5: Nominal net thermal input: | B5: 161.4 | C5: MWth | J5: * Export capacity = nominal generation capacity at the generator terminals minus nominal parasitic load. ** CHP and district heating plants only - put N/A if no heat export. *** Combusted tonnage = tonnes delivered in period + (tonnes in bunker at start of period – tonnes in bunker at end of period), or equivalent calculation depending on plant type **** Availability Definition: The availability of a line is to be calculated by the number of hours the line reported Continuously Monitored emission levels to the Regulator through the calendar year divided by the total number of hours in that year. The overall plant availability is calculated as the mean of all lines in the plant. For clarity this includes periods of abnormal operation. Rationale: The primary function of an Energy from Waste facility is the disposal of waste. It follows therefore that the availability of a plant is determined by the period of time a facility spends undertaking this activity. *****NCV of waste: This should be completed for all plants which have a boiler. Calculate using total thermal power produced by boiler/boiler efficiency, or other suitable calculation.
A6: Nominal electrical export capacity*: | B6: 34.5 | C6: MWe
A7: Nominal heat export capacity**: | B7: N/A | C7: MWth
A8: No. of combustion lines: | B8: 3 | C8: No. of steam turbines: | E8: 1
A10: Waste types received | B10: Unit | C10: Q1 | D10: Q2 | E10: Q3 | F10: Q4 | G10: Year Total | H10: %
A11: Household / Local Authority | B11: tonnes | C11: 76094.38 | D11: 78146.88 | E11: 81068.88 | F11: 80853.46 | G11: =SUM(C11:F11) -> 316163.6 | H11: =IF(G11>0,G11/$G$21,"-") -> 0.6371515587
A12: Commercial & Industrial | C12: 32897.64 | D12: 38641.52 | E12: 23619.8 | F12: 35464.64 | G12: =SUM(C12:F12) -> 130623.6 | H12: 0.2632403931
A13: Hazardous | C13: N/A | D13: N/A | E13: N/A | F13: N/A | G13: 0 | H13: -
A14: Clinical | C14: N/A | D14: N/A | E14: N/A | F14: N/A | G14: 0 | H14: -
A15: Waste wood (biomass) | C15: N/A | D15: N/A | E15: N/A | F15: N/A | G15: 0 | H15: -
A16: Refuse Derived Fuel (incl. SRF) - H'hold/LA | C16: N/A | D16: N/A | E16: N/A | F16: N/A | G16: =SUM(C16:F16) -> 0 | H16: -
A17: Refuse Derived Fuel (incl. SRF) - C&I | C17: 2021.64 | D17: 10767.32 | E17: 3704.96 | F17: 6165.94 | G17: 22659.86 | H17: 0.04566548812
A18: Food waste | C18: 907.84 | D18: 1167.78 | E18: 1195.4 | F18: 1228.82 | G18: 4499.84 | H18: 0.009068343319
A19: Recyclates waste | C19: 5193.6 | D19: 4948.7 | E19: 4853.32 | F19: 4913.02 | G19: 19908.64 | H19: 0.04012106709
A20: Card/Paper | C20: 642.98 | D20: 473.46 | E20: 541.32 | F20: 700.82 | G20: 2358.58 | H20: 0.004753149709
A21: Total waste received | C21: =SUM(C11:C20) -> 117758.08 | D21: =SUM(D11:D20) -> 134145.66 | E21: =SUM(E11:E20) -> 114983.68 | F21: =SUM(F11:F20) -> 129326.7 | G21: 496214.12
A22: Rejected Waste | C22: 117.06 | D22: 94.9 | F22: 5.86 | G22: =SUM(C22:F22) -> 217.82 | H22: =IF(G22>0,G22/$G$21,"-") -> 0.000438963728
A23: Unprocessed waste transferred out | G23: =SUM(C23:F23) -> 0 | H23: =IF(G23>0,G23/$G$21,"-") -> -
A24: Total waste combusted *** | C24: 110503 | D24: 110734 | E24: 100540 | F24: 112921 | G24: =SUM(C24:F24) -> 434698
A26: Energy Usage / Export | B26: Unit | C26: Q1 | D26: Q2 | E26: Q3 | F26: Q4 | G26: Year Total | H26: KWh/te | J26: Password for protected cells A password has been set to prevent accidental editing of cells with formulae. If you still need to make an edit for some reason then the password = 1234
A27: Power generated at generator terminals | B27: MWh | C27: 64025.24 | D27: 62574.42 | E27: 53113.77 | F27: 63724.56 | G27: =SUM(C27:F27) -> 243437.99 | H27: =IF(G27>0,G27*1000/$G$24,"-") -> 560.0163562
A28: Power exported to grid and other external user(s) | C28: 49818 | D28: 49117 | E28: 40579 | F28: 49701 | G28: =SUM(C28:F28) -> 189215 | H28: =IF(G28>0,G28*1000/$G$24,"-") -> 435.2792053
A29: Power imported | C29: 419 | D29: 1703 | E29: 2610 | F29: 1087 | G29: 5819 | H29: =IF(G29>0,G29*1000/$G$24,"-") -> 13.38630497
A30: Indicative parasitic load | B30: % | C30: =IF(C27>0,(C27-C28)/C27,"-") -> 0.2219006129 | D30: =IF(D27>0,(D27-D28)/D27,"-") -> 0.2150626406 | E30: 0.2359984991 | F30: 0.2200652307 | G30: =IF(G27>0,1-G28/(G27+G29),"-") -> 0.2408838765
A31: Thermal Energy Exported ** | C31: N/A | D31: N/A | E31: N/A | F31: N/A | G31: =SUM(C31:F31) -> 0 | H31: =IF(G31>0,G31*1000/$G$24,"-") -> -
A32: R1 value (if applicable) | B32: R1 | C32: - | D32: - | E32: - | F32: - | G32: 0.63
A34: Waste Disposal & Recovery | B34: Unit | C34: Q1 | D34: Q2 | E34: Q3 | F34: Q4 | G34: Year Total | H34: % inputs
A35: APC Residues - produced | B35: tonnes | C35: 12278.3 | D35: 12780.26 | E35: 11624.18 | F35: 11485.54 | G35: =SUM(C35:F35) -> 48168.28 | H35: =IF(G35>0,G35/$G$24,"-") -> 0.1108086074
A36: IBA - produced | C36: 11238.84 | D36: 10290.74 | E36: 10269.72 | F36: 10377.4 | G36: 42176.7 | H36: =IF(G36>0,G36/$G$24,"-") -> 0.09702529112
A37: Metals recycling | C37: 3202.14 | D37: 3342.28 | E37: 2938.62 | F37: 3330.18 | G37: =SUM(C37:F37) -> 12813.22 | H37: 0.02947614206
A38: Other | C38: 0 | D38: 0 | E38: 0 | F38: 0 | G38: =SUM(C38:F38) -> 0 | H38: -
A39: Other | C39: 0 | D39: 0 | E39: 0 | F39: 0 | G39: 0 | H39: -
A40: Other | C40: 0 | D40: 0 | E40: 0 | F40: 0 | G40: 0 | H40: -
A42: Raw Material Usage | B42: Unit | C42: Q1 | D42: Q2 | E42: Q3 | F42: Q4 | G42: Year Total | H42: Qty./te
A43: Mains Water | B43: ltrs | C43: 34444.25806 | D43: 37207.33148 | E43: 36606.72258 | F43: 40427.1 | G43: =SUM(C43:F43) -> 148685.4121 | H43: =IF(G43>0,G43/$G$24,"-") -> 0.3420430095
A44: Lime / hydrated lime | B44: kgs | C44: 872830 | D44: 1066950 | E44: 1302390 | F44: 1216750 | G44: 4458920 | H44: =IF(G44>0,G44/$G$24,"-") -> 10.25751211
A45: Urea | B45: kgs | C45: 0 | D45: 0 | E45: 0 | F45: 0 | G45: 0 | H45: -
A46: Activated carbon | B46: kgs | C46: 66740 | D46: 70310 | E46: 65590 | F46: 69710 | G46: =SUM(C46:F46) -> 272350 | H46: 0.6265269221
A47: Caustic Soda | B47: kgs | C47: 53280 | D47: 48500 | E47: 940 | F47: 34320 | G47: 137040 | H47: 0.3152533483
A48: Hydrochloric Acid | B48: kgs | C48: 54400 | D48: 47520 | E48: 6320 | F48: 34060 | G48: 142300 | H48: 0.327353703
A49: Sand | B49: kgs | C49: 1456690 | D49: 1454220 | E49: 1682410 | F49: 842600 | G49: 5435920 | H49: 12.50504948
A50: Ammonia | B50: kgs | C50: 0 | D50: 0 | E50: 22880 | F50: 0 | G50: 22880 | H50: 0.05263424262
A51: Fuel oil | B51: ltrs | C51: 437950 | D51: 648810 | E51: 1078080 | F51: 577780 | G51: 2742620 | H51: 6.309253781
A52: Salt | B52: kgs | C52: 2000 | D52: 4000 | E52: 40540 | F52: 17920 | G52: 64460 | H52: 0.1482868566
A54: Summary | B54: Line/Unit | C54: Q1 | D54: Q2 | E54: Q3 | F54: Q4 | G54: Year Total | I54: Hrs in year
A55: Availability of waste combustion by line, hrs **** | B55: 1 | C55: 2051.42 | D55: 1925.25 | E55: 1917.18 | F55: 1579.14 | G55: =SUM(C55:F55) -> 7472.99 | H55: =+G55/$I$55 -> 0.8530810502 | I55: 8760 | J55: Change this figure to 8784 in a leap year
B56: 2 | C56: 1762.81 | D56: 1829.69 | E56: 1639.8 | F56: 1854.05 | G56: 7086.35 | H56: =+G56/$I$55 -> 0.8089440639
B57: 3 | C57: 1473.37 | D57: 1764.86 | E57: 1849.47 | F57: 2198.83 | G57: 7286.53 | H57: 0.8317956621
B58: 4 | C58: N/A | D58: N/A | E58: N/A | F58: N/A | G58: 0 | H58: 0
B59: 5 | C59: N/A | D59: N/A | E59: N/A | F59: N/A | G59: =SUM(C59:F59) -> 0 | H59: 0
A60: Hours of turbine operations, hrs | B60: 1 | C60: 2040 | D60: 1780 | E60: 1780 | F60: 2044 | G60: 7644 | H60: 0.8726027397
A61: Hours of turbine operations, hrs | B61: 2 | C61: N/A | D61: N/A | E61: N/A | F61: N/A | G61: 0 | H61: 0
A62: Hours of heat / steam export** | B62: hours | C62: N/A | D62: N/A | E62: N/A | F62: N/A | G62: 0 | H62: =IF(B62>0,G61/I55,"n/a") -> 0
A63: Net calorific value of waste***** | B63: MJ/kg | C63: 10.7 | D63: 10.72 | E63: 11.11 | F63: 10.72
A64: Abnormal operation events | B64: qty. | C64: 0 | D64: 0 | E64: 3 | F64: 0 | G64: 3 | H64: =IF(G64>0,"yes","no") -> yes
A65: Abnormal operation duration | B65: hours | C65: 0 | D65: 0 | E65: 3.5 | F65: 0 | G65: 3.5 | H65: =+(G65)/I55 -> 0.000399543379
A66: Permit Breaches | B66: qty. | C66: 0 | D66: 0 | E66: 2 | F66: 1 | G66: 3 | H66: =IF(G66>0,"yes","no") -> yes

Sheet Operational Summary
A1: =+'Cover Page'!$B$29 -> Annual Performance Report 2025 | E1: =+'Cover Page'!$B$33 -> Kent Enviropower Limited
A3: Summary of Plant Operations and Maintenance during the reporting year | K3: Notes:
A5: Line 3 had an extended plant maintenance outage in March/April 2025, which included the following highlights: - Furnace refractory inspection and repair/replacement, with particular focus on reprofiling the top of the furnace to reduce residue build up in the furnace / boiler - Boiler cleaning and inspection using non-destructive testing - Bicarbonate of soda cleaning of Electrostatic Precipitators to improve efficiency - Inspection and overhaul of 120+ valves to improve efficiency - Inspection and replacement of residue ash hopper walls where thin to protect against potential fugitive dust emissions - Inspection of common air ducts in the Baghouse Filters to protect against potential fugitive dust emissions - Inspection and cleaning of electrical system components - Overhaul of key equipment used in the combustion process including fans and distribution nozzles - Replacement of sections of worn casing on the Circoclean reactor, part of the abatement system - Removal and blanking of the bypass damper to ensure more effective emission control. In parallel with Line 3 outage, the entire combustion process across all 3 lines was shut down for a 10 day window to allow for common plant inspections and overhauls. This included: - Inspection and test of pressure systems to ensure continued compliance - Maintenance of high voltage and low voltage electrical equipment - Connection of an upgraded water treatment plant using reverse osmosis technology to significantly reduce the use of chemicals (still in commissioning) - Maintenance of almost 300 valves to improve reliability and efficiency - Overhaul of site air compressors to ensure efficient operation as well as connection of a new air compressor using a variable speed drive to improve efficiency - Overhaul and inspection of the steam turbine and generator - Installation of a new control system on the steam turbine and generator to improve reliability and reduce the need for importing power form the grid | K5: Include summary of key operational and/or maintenance activity undertaken in the year, such as any major component upgrades and/or replacements
A29: =+'Cover Page'!C39 -> 2025 | B29: Plant shut-downs
A30: Start date | B30: End date | C30: Reason for shut-down | K30: Provide a very brief reason for plant shut-down e.g. "Shut-down prior to major outage"; "Emergency shut-down due to boiler tube leak". All emergency shut-downs must be listed (irrespective of whether or not they were required to be reported to the EA). There is no need to include periods of hot-standby here (e.g. to clear feed chute hopper blockages). For clinical waste incinerators which require regular shut-downs for boiler cleaning, there is no need to record these here (only those prior to major outages, and emergency shut-downs).
A31: 2025-01-01 | B31: 2025-01-08 | C31: Line 2 -Bed fluidisation
A32: 2025-01-12 | B32: 2025-01-18 | C32: Line 3- Bed fluidisation
A33: 2025-02-01 | B33: 2025-02-06 | C33: Line 2 - Bed fluidisation
A34: 2025-02-08 | B34: 2025-02-10 | C34: Line 3 - Waste feeders maintenance
A35: 2025-02-14 | B35: 2025-02-15 | C35: Line 3 - Lime system maintenance
A36: 2025-03-14 | B36: 2025-04-14 | C36: Line 3 - Planned outage
A37: 2025-03-29 | B37: 2025-04-08 | C37: Line 2 - Planned outage
A38: 2025-03-30 | B38: 2025-04-14 | C38: Line 1 - Planned outage
A39: 2025-05-31 | B39: 2025-06-05 | C39: Line 2 - Bed fluidisation
A40: 2025-06-27 | B40: 2025-06-28 | C40: Line 3 - ID Fan maintenance
A41: 2025-07-23 | B41: 2025-07-29 | C41: Line 2 - Bed fluidisation
A42: 2025-07-25 | B42: 2025-07-29 | C42: Line 1 - Turbine bypass maintenance
A43: 2025-08-08 | B43: 2025-08-09 | C43: Line 1 - Plant trip
A44: 2025-08-08 | B44: 2025-08-09 | C44: Line 2 - Plant trip
A45: 2025-08-08 | B45: 2025-08-09 | C45: Line 3 - Plant trip
A46: 2025-08-27 | B46: 2025-09-02 | C46: Line 3 - Bed fluidisation
A47: 2025-09-01 | B47: 2025-09-06 | C47: Line 2 - Bed fluidisation
A48: 2025-09-06 | B48: 2025-09-10 | C48: Line 1 - PA Plenums maintenance
A49: 2025-09-12 | B49: 2025-09-13 | C49: Line 2 - Diostributor maintenance
A50: 2025-09-14 | B50: 2025-09-21 | C50: Line 2 - Planned mini outage
A51: 2025-09-17 | B51: 2025-09-19 | C51: Line 3 - HV fault
A52: 2025-09-25 | B52: 2025-09-28 | C52: Line 3 - Turbine Bypass Maintenance
A53: 2025-10-04 | B53: 2025-10-18 | C53: Line 1 - Planned mini outage
A54: 2025-11-04 | B54: 2025-11-14 | C54: Line 1 - Bed fluidisation
A55: 2025-11-18 | B55: 2025-11-22 | C55: Line 2 - Boiler drum maintenance
A56: 2025-12-06 | B56: 2025-12-13 | C56: Line 2 - Bed fluidisation

Sheet Perf. Form 1
A1: =+'Cover Page'!C39 -> 2025 | B1: Annual Reporting Performance Form 1
A3: =+'Cover Page'!B31 -> Permit EPR/BR4551IC | F3: Operator: | G3: =+'Cover Page'!B37 -> Kent Enviropower Limited
A4: Facility: | B4: =+'Cover Page'!B33:I33 -> Kent Enviropower Limited | F4: Form: | G4: Performance 1
A6: Reporting Period from: | D6: 2025-01-01 | F6: to: | G6: 2025-12-31
A8: =+A1 -> 2025 | B8: Annual Reporting of Waste Disposal and Recovery
A9: Waste Description | C9: Disposal Route(s) | E9: Disposal Tonnes | G9: Recovery Tonnes | I9: % / tonne of waste incinerated
A10: 1) Hazardous Wastes
A11: APC Residues (including FGT, Boiler and ESP ash) | C11: Landfill | E11: 10413.8 | I11: =IF((E11+G11)>0,(E11+G11)/'Operational Data'!$G$24, "-") -> 0.02395640192
A12: APC Residues (including FGT, Boiler and ESP ash) | C12: Recycling | G12: 37754.48 | I12: =IF((E12+G12)>0,(E12+G12)/'Operational Data'!$G$24, "-") -> 0.08685220544
I13: =IF((E13+G13)>0,(E13+G13)/'Operational Data'!$G$24, "-") -> -
I14: =IF((E14+G14)>0,(E14+G14)/'Operational Data'!$G$24, "-") -> -
A15: Total Hazardous Waste | E15: =SUM(E11:F14) -> 10413.8 | G15: =SUM(G11:H14) -> 37754.48 | I15: =IF((E15+G15)>0,(E15+G15)/'Operational Data'!$G$24, "-") -> 0.1108086074
A17: 2) Non-Hazardous Wastes
A18: IBA | C18: Recycling | G18: 42176.7 | I18: =IF((E18+G18)>0,(E18+G18)/'Operational Data'!$G$24, "-") -> 0.09702529112
A19: Ferrous Metal | C19: Recycling | G19: 12831.16 | I19: =IF((E19+G19)>0,(E19+G19)/'Operational Data'!$G$24, "-") -> 0.02951741209
A20: Process Water | C20: N/A | I20: =IF((E20+G20)>0,(E20+G20)/'Operational Data'!$G$24, "-") -> -
I21: =IF((E21+G21)>0,(E21+G21)/'Operational Data'!$G$24, "-") -> -
I22: =IF((E22+G22)>0,(E22+G22)/'Operational Data'!$G$24, "-") -> -
A23: Total Non-Hazardous Waste | E23: =SUM(E18:F22) -> 0 | G23: =SUM(G18:H22) -> 55007.86 | I23: =IF((E23+G23)>0,(E23+G23)/'Operational Data'!$G$24, "-") -> 0.1265427032
A24: TOTAL WASTE | E24: =+E23+E15 -> 10413.8 | G24: =+G23+G15 -> 92762.34 | I24: =IF((E24+G24)>0,(E24+G24)/'Operational Data'!$G$24, "-") -> 0.2373513106
A26: Operator’s comments :
A27: APCr continues to shift significantly from landfill to recycling and this trend is set to continue into 2026
A31: =+A1 -> 2025 | B31: Annual Reporting of Water and Other Raw Material Usage
A32: Raw Material | E32: Usage | G32: Unit | H32: Specific Usage | J32: Unit
A33: Mains Water | E33: =+'Operational Data'!G43/1000 -> 148.6854121 | G33: m3 | H33: =IF(E33>0,E33/'Operational Data'!$G$24,"-") -> 0.0003420430095 | J33: m3/te
A34: Lime / hydrated lime | E34: =+'Operational Data'!G44 -> 4458920 | G34: kg | H34: =IF(E34>0,E34/'Operational Data'!$G$24,"-") -> 10.25751211 | J34: kg/te
A35: Urea | E35: =+'Operational Data'!G45 -> 0 | G35: kg | H35: =IF(E35>0,E35/'Operational Data'!$G$24,"-") -> - | J35: kg/te
A36: Activated carbon | E36: =+'Operational Data'!G46 -> 272350 | G36: kg | H36: =IF(E36>0,E36/'Operational Data'!$G$24,"-") -> 0.6265269221 | J36: kg/te
A37: Caustic Soda | E37: =+'Operational Data'!G47 -> 137040 | G37: kg | H37: =IF(E37>0,E37/'Operational Data'!$G$24,"-") -> 0.3152533483 | J37: kg/te
A38: Hydrochloric Acid | E38: =+'Operational Data'!G48 -> 142300 | G38: kg | H38: =IF(E38>0,E38/'Operational Data'!$G$24,"-") -> 0.327353703 | J38: kg/te
A39: Sand | E39: =+'Operational Data'!G49 -> 5435920 | G39: kg | H39: =IF(E39>0,E39/'Operational Data'!$G$24,"-") -> 12.50504948 | J39: kg/te
A40: Ammonia | E40: =+'Operational Data'!G50 -> 22880 | G40: kg | H40: =IF(E40>0,E40/'Operational Data'!$G$24,"-") -> 0.05263424262 | J40: kg/te
A41: Fuel oil | E41: =+'Operational Data'!G51 -> 2742620 | G41: ltr | H41: =IF(E41>0,E41/'Operational Data'!$G$24,"-") -> 6.309253781 | J41: ltr/te
A42: Salt | E42: =+'Operational Data'!G52 -> 64460 | G42: kg | H42: =IF(E42>0,E42/'Operational Data'!$G$24,"-") -> 0.1482868566 | J42: kg/te
A44: Operator’s comments :
A45: No comments for this section.
A48: =+A31 -> 2025 | B48: Annual Reporting of other performance indicators
A49: Parameter | C49: Results by Line
C50: A1 | D50: A2 | E50: A3 | F50: A4 | G50: A5 | I50: Turbine 1 | J50: Turbine 2
A51: Operating hours for the year, hours | C51: 7472.99 | D51: 7086.35 | E51: 7286.53 | I51: 7644
A52: Number of periods of abnormal operation, qty. | C52: 2 | E52: 1
A53: Cumulative hours of abnormal operation for this year, hours | C53: 2.5 | E53: 1
A55: Operator’s comments :
A56: No comments
A59: Signed: | G59: Date: | H59: 26th January 2026

Sheet Energy Form 1
A1: =+'Cover Page'!C39 -> 2025 | B1: Annual Reporting of Energy Usage/Export
A3: =+'Cover Page'!B31 -> Permit EPR/BR4551IC | F3: Operator: | G3: =+'Cover Page'!B37 -> Kent Enviropower Limited
A5: Facility: | B5: =+'Cover Page'!B33:I33 -> Kent Enviropower Limited | F5: Form: | G5: Energy 1
A7: Reporting Period from: | D7: =+'Perf. Form 1'!D6:E6 -> 2025-01-01 | F7: to: | G7: =+'Perf. Form 1'!G6:H6 -> 2025-12-31
A9: Energy Source | D9: Energy Usage | F9: Unit | G9: Specific Usage (KWh/tonne incinerated
A10: Electricity Produced | D10: =+'Operational Data'!G27 -> 243437.99 | F10: MWh | G10: =+'Operational Data'!H27 -> 560.0163562
A11: Electricity Imported | D11: =+'Operational Data'!G29 -> 5819 | F11: MWh | G11: =+'Operational Data'!H29 -> 13.38630497
A12: Electricity Exported | D12: =+'Operational Data'!G28 -> 189215 | F12: MWh | G12: =+'Operational Data'!H28 -> 435.2792053
A13: Gas Oil | D13: 2331.227 | F13: tonnes | G13: 62.37
A14: Steam/hot water exported | D14: =+'Operational Data'!G31 -> 0 | F14: GWh | G14: =+'Operational Data'!H31 -> -
A18: Operator’s comments :
A19: A similar year to 2024 with the exception of imported electricity due to the planned replacement of the turbine control system.
A29: Signed: | G29: Date: | H29: 26th January 2026

Sheet Permit Compliance
A1: =+'Cover Page'!$B$29 -> Annual Performance Report 2025 | E1: =+'Cover Page'!$B$33 -> Kent Enviropower Limited
A3: Summary of Permit Compliance
A5: Compliance with permit limits for continuously monitored pollutants
A7: The plant met its emission limits as shown in the table below:
A8: Substance | C8: Percentage time compliant during operationNote 1 | L8: Notes:
C9: Half-hourly limit | F9: Daily limit | L9: Note 1: Please report to 2 decimal places, i.e. xx.xx% Note 2: Please enter into this table any permit non-compliances that the EA has given a CCS score for. Please also enter any other non-compliances which you have notified to the EA (e.g. ELV exceedances) but which have not yet been assessed by the EA. There is no need to enter any notifications which were subsequently assessed by the EA not to be permit breaches. Note 3: Please enter information here (rather than just referencing the notifications that were sent to the EA) including where relevant the incineration line reference, pollutant and value of the measured result for any ELV exceedances.
A10: Particulates | C10: 1 | F10: 1
A11: Oxides of nitrogen | C11: 1 | F11: 1
A12: Sulphur dioxide | C12: 0.9999 | F12: 1
A13: Carbon monoxide | C13: 1 | F13: 0.9989
A14: Total organic carbon | C14: 1 | F14: 1
A15: Hydrogen chloride | C15: 1 | F15: 1
A16: Hydrogen fluoride | C16: 1 | F16: 1
A17: Ammonia | C17: 1 | F17: 1
A19: Summary of non-compliances under the permit Note 2
A20: Date | B20: Summary of non-compliance Note 3 | D20: Reason | G20: Measures taken to prevent reoccurrence | H20: CCS score if applicable*
H21: Impact | I21: Root cause
A22: 2025-07-24 | B22: Abnormal Operation number 029 - Disturbance of the lime abatement system leading to increased HCL | D22: A sensor had been disturbed creating an issue with the HCL abatement Lime system. | G22: Investigation started immediately, disturbed sensor identified and repaired | I22: See the "Reason" column
A23: 2025-08-24 | B23: Schedule 5 number 106 - CO daily exceedance of 59.00 mg/m3 against a permit limit of 50 mg/m3 on line 1 | D23: Blockage of the PA nozzles. Low PA flow led to all the following chained events: • Poor fluidisation (unstable bed -> bad combustion) • Waste build up. • Poor oxidation of CO (low freeboard temperatures and low O2 when the burners are on) | G23: Lower the waste feed cap if blockage or buildup detected. Inspect plenums regularly to ensure PA flow is not obstructed Expect and prepare for extra COs after shutting off waste feed | I23: See the "Reason" column
A24: 2025-08-26 | B24: Schedule 5 number 107 - Elevated half hour SO2 on line 3. Limit 40 mg/m3 and 482.6 mg/m3 recorded | D24: Large clump of undesired waste onto the de fluidised bed | G24: Implementation of furnace camera to see the entire bed to identify bed disturbances. More effective use of bed improvement procedure. ALT-G23-WI-1300 Clear significant blockages when they occur ALT-G23-WI-1287 | I24: See the "Reason" column
A25: 2025-09-17 | B25: Schedule 5 number 108 - Emergency Shutdown - Loss of combustion air | D25: Cancelled, has been replaced with Abnormal Operation number 030 | G25: NA
A26: 2025-09-17 | B26: Abnormal Operation number 030 - data loss due to Earth fault on turbine and PA fan | D26: A turbine earth fault caused a primary air fan failure, leading to lines 1 and 3 coming off waste, loss of the DCS system, and invalid CEMS data for two half-hour periods due to insufficient monitoring data. | G26: Investigation ongoing | I26: See the "Reason" column
A27: 2025-11-04 | B27: Schedule 5 number 109 - Line 3 Dioxins & Furans Testing | D27: Under investigation : Limit-0.06ng/m3, reading -0.062ng/m3, uncertainty 0.013 ng/m3 | G27: Investigation ongoing | I27: See the "Reason" column
A28: *If the Environment Agency (EA) has given a Compliance Classification Scheme (CCS) score due to a permit non-compliance it should be entered here (CCS4 = No impact; CCS3 = Minor impact; CCS2 = Significant impact; CCS1 = Major impact). If the EA has not yet assessed a non-compliance which you have notified to them, these columns should be left blank. Enter N/A if no score was given for the root cause.
A30: Summary of any complaints received and actions to taken to resolve them.
A31: Date | B31: Summary of complaint [including Line/Reference] | D31: Reason (including whether substantiated by the operator or the EA) | G31: Measures taken to prevent reoccurrence
A32: 2025-04-29 | B32: Pests (Flies) | D32: NS | G32: Site carries out weekly counting on flies in several areas of the site. None of the areas show an increase flies population, therefore there are not clear proofs that flies are originated from site. The weather was warmer than normal.
A33: 2025-04-29 | B33: Pests (Flies) | D33: NS
A34: 2025-04-29 | B34: Pests (Flies) | D34: NS
A35: 2025-04-29 | B35: Pests (Flies) | D35: NS
A36: 2025-05-02 | B36: Pests (Flies) | D36: NS
A37: 2025-05-06 | B37: Pests (Flies) | D37: NS
A38: 2025-06-16 | B38: Odour | D38: S based on wind direction | G38: Daily check was completed straight after the complaint was raised. The odour levels albeit subjective, were in acceptable levels. The MSW bunker was empty after the weekend and the site was open for deliveries. The wind direction was towards our neighbours plus the waste lorries were constantly using St Laurance Ave & Laverstock road.
A39: 2025-07-28 | B39: Odour | D39: S based on wind direction | G39: Odour checks carried out 06:00 and 16:00 on 28/07/2025 Weather conditions - Dry /Dry Temperature - Warm / 22c wind strength - light / 4mph wind direction - NNW / WNW @ 06:00 faint odour present on south side of plant in zones 4,5,6 @16:00 no detectable odours All doors and louvres are shut. Only deodorizer No 2 is operating correctly. Maintenance requested to fix all the other 2
A40: 2025-07-24 | B40: Odour | D40: S based on wind direction | G40: All doors and louvres are shut. in the MSW and DF area. no odours found while walking around at night.
A41: 2025-07-24 | B41: Noise | D41: S | G41: Boiler house was full of smoke and setting off alarms across a large area of the site and the fire system was not working correctly. The decision to leave the fire alarm on and get confidence in it before we silenced the site evacuation alarm. Argus fire Engineer was already on site so was called from the muster point to assist the Op's team
A42: 2025-07-10 | B42: Odour | D42: S based on wind direction | G42: Odour checks carried out @05:00 and 10:00, no detectable odours
A43: 2025-07-03 | B43: Odour | D43: S based on wind direction | G43: After the complaint was made our routine site odour check was executed straight away. Our site odour was within our acceptable limits. All roof louvres were checked for 'confirmed closed & all boiler house doors were also checked for being shut. The wind was from the NE which would included a potential odour from the local recycling site.
A44: 2025-08-15 | B44: Odour | D44: S based on wind direction | G44: Other than only one deodoriser I/S (of which a second unit was being repaired at that time as a priority#1 breakdown) , all doors & louvres ware confirmed closed. A routine odour monitoring report form was also completed. All control measures & monitoring were satisfied. The claimants property was in the direction of the wind, but the breeze was very light. The intensity & sensitivity of risk was within acceptable levels.
A45: 2025-08-20 | B45: Odour | D45: S based on wind direction | G45: Odour checks were completed at 23:00 on 21/08/2025. It was reported that there was no detectable odour in all areas. However, on the roller shutter door check sheet the TLS roller door is recorded as open. this was due to the maintenance work being carried out and it was not possible for OPS to close the door. This may have contributed to a possible odour. but as recorded by 23:00 there was not odour on site.
A46: 2025-12-17 | B46: Smoke pollution | D46: NS | G46: Data sent to EA to demonstrate compliance, no issues with the emissions
A47: 2025-12-19 | B47: Smoke pollution | D47: NS | G47: This has already been raised by the EA and data sent to them to demonstrate compliance.
A48: 2025-12-27 | B48: Smoke pollution | D48: NS | G48: Action raised to contact complainant and invite to site

Sheet Improvements
A1: =+'Cover Page'!$B$29 -> Annual Performance Report 2025 | E1: =+'Cover Page'!$B$33 -> Kent Enviropower Limited
A3: Summary of Plant Improvements
A5: Summary of any efficiency improvements that have been completed within the year.
A6: In March–April 2025, Line 3 underwent an extended maintenance outage that included major inspections, cleaning, repairs, and equipment upgrades to improve operational reliability, efficiency, and environmental control. Key work focused on the furnace, boiler, emission‑control systems, valves, electrical components, and critical combustion equipment. Alongside the Line 3 outage, all three lines were taken offline for a coordinated 10‑day shutdown to complete common plant activities. These included statutory pressure‑system testing, electrical maintenance, connection of an upgraded reverse‑osmosis water treatment plant, extensive valve maintenance, air‑compressor overhauls and complete additional air compressor, and major work on the steam turbine and generator, including installation of a new control system. Together, these improvements strengthen plant performance, enhance emission control, reduce chemical and energy use, and support long‑term reliability.
A16: Summary of any permit improvement conditions that have been completed within the year and the resulting environmental benefits.
A17: C14 analysers are currently being installed and commissioned for the measurement of CO2 and the forthcoming involvement of the emission trading scheme.
A27: Summary of any changes to the plant or operating techniques which required a variation to the permit and a summary of the resulting environmental impact.
A28: No permit changes to plant or operating techniques that require a permit variation.
A38: Summary of any other improvements made to the plant or planned to be made and a summary of the resulting environmental benefits.
A39: Recent improvements include the installation of dust monitoring analysers on each baghouse chamber, enabling the operations team to quickly identify faulty bags and reduce the risk of dust emissions. Work is ongoing on the furnace O₂ analyser project, which will enhance combustion efficiency. A furnace camera is also being installed to provide better monitoring of the fluidised bed, supporting improved plant availability. In addition, the team is implementing new operating techniques learned from EBARA in Japan to further stabilise the process and increase overall availability.

Sheet Public Liasion
A1: =+'Cover Page'!$B$29 -> Annual Performance Report 2025 | E1: =+'Cover Page'!$B$33 -> Kent Enviropower Limited
A3: Details of Public & Stakeholder Liaison
A5: Summary of events held during the reporting year.
A6: Date | C6: Description
A7: 2025-02-24 | C7: The Facility has an active liaison group involving representatives from the following stakeholders: • Chairman - Mr Brian White • Environment Agency • 10 Local Residents • Councillors Walker and Hammond (TMBC members) • Councillors Robertson, Harwood. • Councillors Homewood and Bird (KCC members) • Maidstone Borough Council Environmental Health, Wilcock • Councillors Walker and Balcombe (Aylesford Parish Council) • Tonbridge & Malling & Maidstone Borough Council Environmental Health • Kent County Council Waste Management • Kent Enviropower
A9: 2025-06-26
A11: 2025-11-11
C13: The facility also hosts regular visits from locally interested parties and schools and regularly visits local schools to introduce the industry in an educational setting.
A16: List of events planned for next year
A17: Date | C17: Description
A18: 2026-02-01 | C18: Opposite are the months for the Liaison meetings planned for 2025. There have been some spaces that have become available at the meeting. Invites have been sent out to prospective new members and all spaces have now been filled
A20: 2026-06-01
A22: 2026-10-01
A29: If you wish to be involved in the public liaison programme, please contact Brian White (Chairman) - Email: drbdwhite@yahoo.co.uk

Sheet CO2 N2O
A1: =+'Cover Page'!$B$29 -> Annual Performance Report 2025 | C1: =+'Cover Page'!$B$33 -> Kent Enviropower Limited
A3: Carbon dioxide emissions and biogenic content of waste inputs | F3: Notes:
A5: Carbon dioxide emissions (all types of plant)
B6: Annual mass of carbon dioxide released | C6: tonnes | D6: 531000
B7: Annual mass of carbon dioxide released per tonne of waste burned | C7: t CO2 / t waste | D7: 1.22 | F7: Note 1: All permits require operators to continuously monitor CO2 to EN14181 and flow to BS EN 16911-2 (unless otherwise agreed in writing). Operators must therefore use the results from these instruments to calculate their annual CO2 emissions. Where an operator does not have a flow meter calibrated to BS EN 16911-2, the averaged flow measurement from that year's periodic monitoring can be used instead. If the plant does not have calibrated CO2 CEMS, a suitably justified emissions factor can be used.
B8: Annual mass of carbon dioxide released per MWh of energy exported | C8: t CO2 / MWh export | D8: 2.8
B9: Description of how annual carbon dioxide mass emission has been calculated. See Note 1 | C9: CO2 is obtained from a QAL 2 calibrated CEMS
A10: Nitrous oxide emissions (only plants which use ammonia or urea to abate NOx emissions)
B11: Annual mass emissions of nitrous oxide | C11: tonnes N2O | D11: 10.199
B12: Description of how annual nitrous oxide mass emission has been calculated See Note 2 | C12: N2O is obtained from a QAL 2 calibrated CEMS | F12: Note 2: All permits require operators to continuously monitor N2O to EN14181 and flow to BS EN 16911-2, unless otherwise agreed in writing. Operators must therefore use the results from these instruments to calculate their annual N2O emissions. Where an operator does not have a flow meter calibrated to BS EN 16911-2, the averaged flow measurement from periodic monitoring can be used instead. If the plant does not have calibrated N2O CEMS, data from periodic monitoring or a suitably justified emissions factor can be used instead.
A13: Total annual carbon dioxide + nitrous oxide emissions. See Note 3. | C13: tonnes CO2e | D13: 2703 | F13: Note 3: Total annual carbon dioxide and nitrous oxide emissions reported as carbon dioxide equivalent where 1 tonne nitrous oxide is equivalent to 265 tonnes carbon dioxide.
A14: Biogenic CO2 emissions (See Note 4) | F14: Note 4: Only plants combusting residual municipal waste, refuse derived fuel or solid recovered fuel need complete this section.
B15: Percentage of total carbon dioxide emissions arising from biogenic waste | C15: % | D15: 0.56
B16: No. of measurements undertaken | C16: Number | D16: 1 month sampling
B17: Description of how percentage biogenic carbon dioxide emissions have been measured or calculated. See Note 5 | C17: Determination of biogenic carbon content of fuel from stationary sources (based on ASTM D6866/EN ISO 13833) | F17: Note 5: The results from C14 sampling should be used if this is carried out at the plant (either via an installed sampler or from spot samples). Otherwise, as an approximation (and in lieu of any more accurate metrics which may be developed in future), the measured or estimated biogenic fraction by net calorific value (see Note 6) can be assumed to be the same as the biogenic CO2 fraction of the total CO2 emissions from the plant.
A18: Biogenic fraction of waste feedstock (See Note 4)
B19: Yearly average biogenic percentage of the waste by net calorific value (NCV) | C19: % | D19: 0.5067
B20: Description of how biogenic percentage (by NCV) has been calculated or estimated. See Note 6 | C20: Annual waste sampling was used to determine calculations. C14 samplers are currently being installed. | F20: Note 6: If C14 sampling is carried out at the plant, the methodology set out in the embedded document entitled "Renewable Energy Association Energy Content of Fuels - Description of Method" embedded below can be used to calculate the biogenic percentage by net calorific value. Otherwise, data from waste sampling or BIOMA software can be used; or if none of these are available, an estimated figure with justification or a figure assumed on the basis of up-to-date industry data can be used.
B21: Yearly average biogenic percentage of the waste by mass | C21: % | D21: 0.507
B22: If waste sampling undertaken, no. of samples used to ascertain average biogenic percentages above | C22: Number | D22: 1
B23: Description of how biogenic percentage (by mass) has been calculated or estimated. See Note 7 | C23: Waste feed analysis carried out annually (these figures are from the 2024 report). The % recorded is all wastes (recorded at 99.14%) minus the following non biogenic waste:- Plastic film 14.64% Dense plastic 16.39% Note: Textiles 17.43% - This calculation assumed textiles are 100% biogenic. | F23: Note 7: Where available, data from waste sampling should be used; otherwise, an estimated figure with justification can be used, or a figure assumed on the basis of up-to-date industry data.
B25: Comments:
B26: CO2 and N2O have come directly from the continuous emission monitoring system (CEMS) and are both QAL 2 calibrated with calibration functions in place. Biogenic CO2 comes from a single C14 testing process.

Sheet Residues
A1: =+'Cover Page'!$B$29 -> Annual Performance Report 2025 | E1: =+'Cover Page'!$B$33 -> Kent Enviropower Limited
A3: Summary of Residue Handling for the reporting year
A5: Waste Description: Bottom Ash Parameter to be measured : TOC, Metals (Cd, Tl, Hg, Pb, Cr, Cu, Mn, Ni, As, Co, V, Sb, Zn) and their compounds and the total soluble fraction of these metals, dioxins/ furans and dioxin like PCB’s. Sampling and analysis as per Agency ash sampling protocol. Frequency: Quarterly (with the exception of the total soluble fraction which shall be sampled and analysed before the use of a new disposal or recycling route). Hazard assessment undertaken twice a month (24 samples a year) | K5: Include in here a summary of residue handling regimes and destinations
A15: Residue Quality Monitoring Requirements
A17: Summary of monitoring undertaken and compliance
A18: Twenty-four random IBA samples were sent for testing and returned as non-hazardous.
A20: The Total Organic Carbon (TOC) results for all quarterly samples showed an average of less than 1%, indicating consistently low organic content throughout the monitoring period.
A25: Commentary on any specific events
A26: Date & Event | C26: Description
A27: 17th December 2025 | C27: laboratory analysis and hazardous property assessment which showed that this sample was below limits for HP4 (irritant), HP7 (carcinogenic) and HP8 (corrosive). However, the sample exceeded the concentration limit for HP14 (ecotoxic) due to elevated levels of copper.
A39: Residue Quality Monitoring Results
A40: Parameter (unit) | C40: Limit* | D40: Normal Operation
D41: Bottom ash | F41: APC Residues
A42: Loss on Ignition (average %) | C42: <5% | D42: NA
A43: Total Organic Carbon (average %) | C43: <3% | D43: <1%
A44: No. of Assessments Undertaken | C44: --- | D44: 28 | F44: 4
A45: No. of Hazardous Results | C45: --- | D45: 0
A46: * The permit will specify a limit of either 5% loss on ignition or 3% total organic carbon. If both are measured anyway, please enter the results here, even where the limit does not apply.
A48: Comments :
A49: * The new permit variation BREF (BR4551IC version 012) no longer requires LOI to be recorded. ** This equates to 24 IBA hazard assessments and 4 quarterly reports.

Sheet Water
A1: =+'Cover Page'!$B$29 -> Annual Performance Report 2025 | E1: =+'Cover Page'!$B$33 -> Kent Enviropower Limited
A3: Emissions to Water
A5: Summary of monitoring undertaken and compliance
A6: Parameters for which reports shall be made, in accordance with conditions of the Consent to the Discharge of Trade Effluent issued by Southern Water, are listed below and are measured monthly. These are not Environmental Permit limits but limits for disposal of effluent water discharged down sewage drains.
A8: These are not Environmental Permit limits but limits for disposal of effluent water discharged down sewage drains.
A13: Commentary on any specific events
A14: Date & Event | C14: Description
A15: 2025-04-01 | C15: This sampling point is problematic because it is often dry, making it difficult to obtain a representative sample. Unfortunately, there is no alternative sampling point available on site.
A22: Emissions to Water / Sewer
A23: Parameter | D23: Monitoring Frequency | F23: Limit | G23: Target | H23: Max. | I23: Average
A24: Arsenic | D24: monthly | F24: 1 | G24: 1 | H24: 0.1 | I24: 0.075
A25: COD shaken | D25: monthly | F25: 800 | G25: 800 | H25: 48 | I25: 14.41666667
A26: Chromium | D26: monthly | F26: 1 | G26: 1 | H26: 0.1 | I26: 0.06333333333
A27: Copper | D27: monthly | F27: 1 | G27: 1 | H27: 1 | I27: 0.75
A28: Fluoride | D28: monthly | F28: 2 | G28: 2 | H28: 0.5 | I28: 0.2083333333
A29: Lead | D29: monthly | F29: 1 | G29: 1 | H29: 3.1 | I29: 0.625
A30: Molybdenum | D30: monthly | F30: 1 | G30: 1 | H30: 0.2 | I30: 0.08333333333
A31: Nickel | D31: monthly | F31: 1 | G31: 1 | H31: 1 | I31: 0.15
A32: Selenium | D32: monthly | F32: 1 | G32: 1 | H32: 0.1 | I32: 0.075
A33: Sulphate | D33: monthly | F33: 500 | G33: 500 | H33: 140 | I33: 57.16666667
A34: Suspended solids | D34: monthly | F34: 200 | G34: 200 | H34: 1104 | I34: 117.6666667
A35: Zinc | D35: monthly | F35: 3 | G35: 3 | H35: 0.3 | I35: 0.1083333333
A36: pH | D36: monthly | H36: 9.5 | I36: 6

Sheet Air (periodic)
A1: =+'Cover Page'!$B$29 -> Annual Performance Report 2025 | E1: =+'Cover Page'!$B$33 -> Kent Enviropower Limited
A3: Emissions to Air (periodically monitored)
A5: Summary of monitoring undertaken, standards used and compliance | K5: Notes:
A6: Bi annual monitoring by an accredited test house. | K6: Template may require adjustment for any bespoke monitoring requirements of permit - please also check that all default ELV values, reference periods and the stated oxygen reference value match those for your plant, and edit if necessary!
A9: Results of emissions to air that are periodically monitored - oxygen reference 11%
A10: Substance | C10: Ref. Period | D10: Emission Limit Value | F10: Average | K10: User to add additional tables as necessary, depending on whether quarterly or bi-annual reporting is required for the compliance year
F11: A1 | G11: A2 | H11: A3 | I11: A4 | J11: A5
A12: Hydrogen fluoride | C12: 1 hr | D12: 1 mg/m3 | F12: 0.265 | G12: 0.041 | H12: 0.042
A13: Cd and Tl and their compounds | C13: 0.5-8hrs | D13: 0.02 mg/m3 | F13: 0.001 | G13: 0.00095 | H13: 0.00096
A14: Hg and its compounds | C14: 0.5-8hrs | D14: 0.02 mg/m3 | F14: 0.0011 | G14: 0.00063 | H14: 0.00073
A15: Sb, As, Pb, Cr, Co, Cu, Mn, Ni, V and their compounds | C15: 0.5-8hrs | D15: 0.3 mg/m3 | F15: 0.05595 | G15: 0.06085 | H15: 0.0232
A16: Dioxins & Furans (I-TEQ) | C16: 6-8hrs | D16: 0.06 ng/m3 | F16: 0.0462 | G16: 0.04835 | H16: 0.04435
A17: PCBs (WHO-TEQ Humans / Mammals) | C17: 6-8hrs | D17: None set ng/m3 | F17: 0.0027 | G17: 0.0024755 | H17: 0.0023415
A18: PCBs (WHO-TEQ Fish) | C18: 6-8hrs | D18: None set ng/m3 | F18: 0.00011 | G18: 0.000102 | H18: 9.45e-05
A19: PCBs (WHO-TEQ Birds) | C19: 6-8hrs | D19: None set ng/m3 | F19: 0.0049 | G19: 0.0043065 | H19: 0.004387
A20: Dioxins & Furans (WHO-TEQ Humans / Mammals) | C20: 6-8hrs | D20: None set ng/m3 | F20: 0.0446 | G20: 0.04705 | H20: 0.0442
A21: Dioxins & Furans (WHO-TEQ Fish) | C21: 6-8hrs | D21: None set ng/m3 | F21: 0.0374 | G21: 0.05285 | H21: 0.03395
A22: Dioxins & Furans (WHO-TEQ Birds) | C22: 6-8hrs | D22: None set ng/m3 | F22: 0.05345 | G22: 0.0518 | H22: 0.045
A23: Anthanthrene | C23: 6-8hrs | D23: None set µg/m3 | F23: 0.00255 | G23: 0.0026 | H23: 0.0034
A24: Benzo{a}anthracene | C24: 6-8hrs | D24: None set µg/m3 | F24: 0.00415 | G24: 0.00425 | H24: 0.00545
A25: Benzo[b]fluoranthene | C25: 6-8hrs | D25: None set µg/m3 | F25: 0.0007 | G25: 0.0007 | H25: 0.0009
A26: Benzo[k]fluoranthene | C26: 6-8hrs | D26: None set µg/m3 | F26: 0.0007 | G26: 0.0007 | H26: 0.0009
A27: Benzo[b]naph(2,1-d}thiophene | C27: 6-8hrs | D27: None set µg/m3 | F27: 0.00085 | G27: 0.0007 | H27: 0.0009
A28: Benzo[c]phenanthrene | C28: 6-8hrs | D28: None set µg/m3 | F28: 0.0007 | G28: 0.0007 | H28: 0.0009
A29: Benzo[ghi]perylene | C29: 6-8hrs | D29: None set µg/m3 | F29: 0.0022 | G29: 0.00225 | H29: 0.0029
A30: Benzo[a]pyrene | C30: 6-8hrs | D30: None set µg/m3 | F30: 0.0007 | G30: 0.0007 | H30: 0.0009
A31: Cholanthrene | C31: 6-8hrs | D31: None set µg/m3 | F31: 0.0007 | G31: 0.0007 | H31: 0.0009
A32: Chrysene | C32: 6-8hrs | D32: None set µg/m3 | F32: 0.00335 | G32: 0.0026 | H32: 0.0034
A33: Cyclopenta(cd)pyrene | C33: 6-8hrs | D33: None set µg/m3 | F33: 0.0007 | G33: 0.0007 | H33: 0.0009
A34: Dibenzo[ah]anthracene | C34: 6-8hrs | D34: None set µg/m3 | F34: 0.003 | G34: 0.0031 | H34: 0.00395
A35: Dibenzo[ai]pyrene | C35: 6-8hrs | D35: None set µg/m3 | F35: 0.0074 | G35: 0.0076 | H35: 0.0098
A36: Fluoranthene | C36: 6-8hrs | D36: None set µg/m3 | F36: 0.018 | G36: 0.0062 | H36: 0.00925
A37: Indeno[1,2,3-cd]pyrene | C37: 6-8hrs | D37: None set µg/m3 | F37: 0.0025 | G37: 0.00255 | H37: 0.0033
A38: Naphthalene | C38: 6-8hrs | D38: None set µg/m3 | F38: 0.2508 | G38: 0.2568 | H38: 0.3311
A39: Comments :
A40: N/A

Sheet Air (CEMS)
A1: =+'Cover Page'!$B$29 -> Annual Performance Report 2025 | I1: =+'Cover Page'!$B$33 -> Kent Enviropower Limited
A3: Emissions to Air (continuously monitored)
N4: Notes:
A5: Summary of monitoring undertaken, standards used and compliance | N5: Template may require adjustment for any bespoke monitoring requirements of permit
A6: All monitoring conducted on accredited MCERT emission monitoring equipment with relevant QAL 2 data entered and regular QAL 3 testing carried out. | N6: Please check that all default ELV values match those for your plant and edit if necessary!
N7: Report to 1 decimal place
A11: Results of emissions to air that are continuously monitored (maximum and average values for each line) - oxygen reference 11%
A12: Substance | B12: Reference Period | C12: Emission Limit Value | D12: A1 | F12: A2 | H12: A3 | J12: A4 | L12: A5
D13: Max. | E13: Avg. | F13: Max. | G13: Avg. | H13: Max. | I13: Avg. | J13: Max. | K13: Avg. | L13: Max. | M13: Avg.
A14: Oxides of nitrogen | B14: Daily mean | C14: 180 mg/m3 | D14: 171.6696014 | E14: 134.1114983 | F14: 171.8507538 | G14: 144.1153822 | H14: 165.1322784 | I14: 124.474836
B15: ½ hourly mean | C15: 400 mg/m3 | D15: 313.8976135 | E15: 134.3939349 | F15: 304.3070679 | G15: 144.5646718 | H15: 324.2546997 | I15: 124.6758137
A16: Particulates | B16: Daily mean | C16: 5 mg/m3 | D16: 4.696206093 | E16: 1.942050917 | F16: 3.927181959 | G16: 1.905334684 | H16: 3.689047098 | I16: 1.599520949
B17: ½ hourly mean | C17: 30 mg/m3 | D17: 8.758372307 | E17: 1.948198271 | F17: 9.102584839 | G17: 1.915081235 | H17: 7.075542927 | I17: 1.602091821
A18: Total Organic Carbon | B18: Daily mean | C18: 10 mg/m3 | D18: 5.776710987 | E18: 0.4174202177 | F18: 1.864649057 | G18: 0.4018798202 | H18: 1.388411999 | I18: 0.4054026465
B19: ½ hourly mean* | C19: 20 mg/m3 | D19: 360.7687378 | E19: 0.4732531199 | F19: 58.21432495 | G19: 0.4162920393 | H19: 27.24108315 | I19: 0.4109528165
A20: Hydrogen chloride | B20: Daily mean | C20: 8 mg/m3 | D20: 7.173243999 | E20: 5.832336884 | F20: 7.1196661 | G20: 5.613254529 | H20: 7.665980816 | I20: 6.049485875
B21: ½ hourly mean | C21: 60 mg/m3 | D21: 67.11231995 | E21: 5.813505216 | F21: 46.8636322 | G21: 5.555722102 | H21: 56.27977371 | I21: 6.016121003
A22: Sulphur dioxide | B22: Daily mean | C22: 40 mg/m3 | D22: 4.794291019 | E22: 1.002458762 | F22: 4.952603817 | G22: 0.7400478515 | H22: 11.27611828 | I22: 0.3425944367
B23: ½ hourly mean | C23: 200 mg/m3 | D23: 111.6174698 | E23: 1.0239664 | F23: 140.264389 | G23: 0.7490525687 | H23: 482.5736694 | I23: 0.3382885254
A24: Carbon monoxide | B24: Daily mean | C24: 50 mg/m3 | D24: 58.63572311 | E24: 5.136976641 | F24: 34.01036453 | G24: 7.077267502 | H24: 17.36365318 | I24: 2.858337865
B25: 95%ile 10-min avg * | C25: 150 mg/m3 * | D25: 6.914908886 | E25: NA | F25: 26.66861359 | G25: NA | H25: 9.624757151 | I25: NA
A26: Ammonia | B26: Daily mean | C26: 15 mg/m3 | D26: 1.384418011 | E26: 0.2532536297 | F26: 0.8349760175 | G26: 0.2177935335 | H26: 0.8111739755 | I26: 0.2231906949
A27: * = delete as appropriate, depending on whether your plant has half-hourly or 10-min CO ELVs
A28: Comments :
A29: * TOC is 97% of all half hour averages in a rolling year and this has been compliant for all periods.

Sheet HCl
A1: =+'Cover Page'!$B$29 -> Annual Performance Report 2025 | E1: =+'Cover Page'!$B$33 -> Kent Enviropower Limited
A3: Monitoring of Hydrogen Chloride emissions | D3: Whole Installation | G3: See Notes in Cell Q3 | J3: =+A3 -> Monitoring of Hydrogen Chloride emissions | N3: Per Combustion Line | Q3: Notes:
Q4: User to add logic to complete Whole installation, Table A5:G18. From the data in Per Combustion Line, Table J6:O79, subject to No. of lines installed
A5: =+'Cover Page'!C39 -> 2025 | B5: 1/2 Hourly Reference Periods | E5: Daily Reference Periods
A6: mg/Nm3 | B6: 1/2 hourly HCl ELV | C6: Monthly mean of half-hourly averages | D6: Highest half- hourly average | E6: Daily HCl ELV | F6: Monthly mean of daily averages | G6: Highest daily average | J6: =+A5 -> 2025 | K6: mg/Nm3 | L6: Monthly mean of half-hourly averages | M6: Highest half- hourly average | N6: Monthly mean of daily averages | O6: Highest daily average
A7: Jan | B7: 60 | C7: =AVERAGE(L7,L22,L37) -> 3.313874856 | D7: =AVERAGE(M7,M22,M37) -> 9.701959928 | E7: 8 | F7: =AVERAGE(N7,N22,N37) -> 3.351049949 | G7: =AVERAGE(O7,O22,O37) -> 6.422077974 | J7: A1 | K7: Jan | L7: 2.836823622 | M7: 9.193405151 | N7: 2.836823598 | O7: 6.525012016
A8: Feb | B8: 60 | C8: =AVERAGE(L8,L23,L38) -> 6.268677751 | D8: =AVERAGE(M8,M23,M38) -> 16.43105888 | E8: 8 | F8: =AVERAGE(N8,N23,N38) -> 6.317135038 | G8: =AVERAGE(O8,O23,O38) -> 7.137380759 | K8: Feb | L8: 6.373835285 | M8: 12.77888012 | N8: 6.390795708 | O8: 7.115023136
A9: Mar | B9: 60 | C9: 6.338791481 | D9: 14.62493515 | E9: 8 | F9: 6.358289798 | G9: 7.147626241 | K9: Mar | L9: 6.335794404 | M9: 15.20582008 | N9: 6.341413498 | O9: 7.173243999 | Q9: Whole Installation table A5:G18:
A10: Apr | B10: 60 | C10: 6.24817214 | D10: 12.22887198 | E10: 8 | F10: 6.399303913 | G10: 7.200113614 | K10: Apr | L10: 6.391994744 | M10: 12.36938572 | N10: 6.459044607 | O10: 6.85047102 | Q10: Mean: for 1/2 hourly and daily periods calculate mean of values across all operational combustion lines for the month
A11: May | B11: 60 | C11: 6.235216136 | D11: 13.14983622 | E11: 8 | F11: 6.235699724 | G11: 6.768665155 | K11: May | L11: 6.420859276 | M11: 14.64906406 | N11: 6.420859245 | O11: 6.84844923
A12: Jun | B12: 60 | C12: 6.32984832 | D12: 14.69492912 | E12: 8 | F12: 6.371761598 | G12: 6.937229315 | K12: Jun | L12: 6.29952869 | M12: 15.29244423 | N12: 6.377161043 | O12: 6.771714211
A13: Jul | B13: 60 | C13: 6.255119831 | D13: 38.02676551 | E13: 8 | F13: 6.288510289 | G13: 6.859983762 | K13: Jul | L13: 6.369139337 | M13: 67.11231995 | N13: 6.342331791 | O13: 6.737052917 | Q13: Maximum: for 1/2 hourly and daily periods use the highest value across all operational combustion lines for the month
A14: Aug | B14: 60 | C14: 6.413084079 | D14: 28.33825334 | E14: 8 | F14: 6.413951411 | G14: 7.021473567 | K14: Aug | L14: 6.388758632 | M14: 12.88435078 | N14: 6.407083511 | O14: 7.004747868
A15: Sep | B15: 60 | C15: 4.726029293 | D15: 11.101216 | E15: 8 | F15: 4.770464349 | G15: 6.066758951 | K15: Sep | L15: 4.734904792 | M15: 10.58892822 | N15: 4.683114984 | O15: 6.512868881
A16: Oct | B16: 60 | C16: 6.01542573 | D16: 10.66880703 | E16: 8 | F16: 6.047537105 | G16: 6.902633667 | K16: Oct | L16: 5.792140817 | M16: 9.630629539 | N16: 5.856391579 | O16: 6.886213779
A17: Nov | B17: 60 | C17: 5.482627829 | D17: 11.61439927 | E17: 8 | F17: 5.513593759 | G17: 6.905693054 | K17: Nov | L17: 5.979675901 | M17: 13.19184208 | N17: 6.085005484 | O17: 6.821720123
A18: Dec | B18: 60 | C18: 5.914525833 | D18: 23.88621807 | E18: 8 | F18: 5.91301222 | G18: 6.85801665 | K18: Dec | L18: 5.838607088 | M18: 13.0014286 | N18: 5.788017556 | O18: 6.75845623
K19: Annual | L19: =AVERAGE(L7:L18) -> 5.813505216 | M19: =MAX(M7:M18) -> 67.11231995 | N19: =AVERAGE(N7:N18) -> 5.832336884 | O19: =MAX(O7:O18) -> 7.173243999
J21: =+A5 -> 2025 | K21: mg/Nm3 | L21: Monthly mean of half-hourly averages | M21: Highest half- hourly average | N21: Monthly mean of daily averages | O21: Highest daily average
J22: A2 | K22: Jan | L22: 2.890426657 | M22: 9.045595169 | N22: 2.926293624 | O22: 5.883759022
K23: Feb | L23: 6.125175458 | M23: 22.90603447 | N23: 6.209087935 | O23: 7.1196661
K24: Mar | L24: 5.816467673 | M24: 17.33998489 | N24: 5.876358894 | O24: 7.000412941
K25: Apr | L25: 6.060466872 | M25: 14.03366375 | N25: 6.293758242 | O25: 7.083889008
K26: May | L26: 5.840958517 | M26: 13.90898037 | N26: 5.842409237 | O26: 6.633388042
K27: Jun | L27: 6.182465892 | M27: 15.30822372 | N27: 6.248184166 | O27: 6.98462677
K28: Jul | L28: 5.874262255 | M28: 35.21806717 | N28: 6.001241185 | O28: 6.824055195
K29: Aug | L29: 6.333528281 | M29: 15.85063553 | N29: 6.32270078 | O29: 6.957614899
K30: Sep | L30: 3.641237303 | M30: 11.48438931 | N30: 3.669006133 | O30: 4.662806988
K31: Oct | L31: 6.078346963 | M31: 12.69930458 | N31: 6.111067874 | O31: 7.071453094
K32: Nov | L32: 5.7030559 | M32: 12.59470654 | N32: 5.690624123 | O32: 6.897356033
K33: Dec | L33: 6.122273449 | M33: 46.8636322 | N33: 6.168322158 | O33: 6.987969875
K34: Annual | L34: =AVERAGE(L22:L33) -> 5.555722102 | M34: =MAX(M22:M33) -> 46.8636322 | N34: =AVERAGE(N22:N33) -> 5.613254529 | O34: =MAX(O22:O33) -> 7.1196661
J36: =+A5 -> 2025 | K36: mg/Nm3 | L36: Monthly mean of half-hourly averages | M36: Highest half- hourly average | N36: Monthly mean of daily averages | O36: Highest daily average
J37: A3 | K37: Jan | L37: 4.21437429 | M37: 10.86687946 | N37: 4.290032625 | O37: 6.857462883
K38: Feb | L38: 6.307022511 | M38: 13.60826206 | N38: 6.351521471 | O38: 7.177453041
K39: Mar | L39: 6.864112367 | M39: 11.32900047 | N39: 6.857097002 | O39: 7.269221783
K40: Apr | L40: 6.292054805 | M40: 10.28356647 | N40: 6.445108891 | O40: 7.665980816
K41: May | L41: 6.443830617 | M41: 10.89146423 | N41: 6.44383069 | O41: 6.824158192
K42: Jun | L42: 6.507550379 | M42: 13.48411942 | N42: 6.489939584 | O42: 7.055346966
K43: Jul | L43: 6.521957903 | M43: 11.7499094 | N43: 6.52195789 | O43: 7.018843174
K44: Aug | L44: 6.516965324 | M44: 56.27977371 | N44: 6.512069941 | O44: 7.102057934
K45: Sep | L45: 5.801945782 | M45: 11.23033047 | N45: 5.959271931 | O45: 7.024600983
K46: Oct | L46: 6.175789411 | M46: 9.676486969 | N46: 6.175151863 | O46: 6.750234127
K47: Nov | L47: 4.765151686 | M47: 9.056649208 | N47: 4.765151672 | O47: 6.998003006
A48: Comments : | K48: Dec | L48: 5.782696963 | M48: 11.79359341 | N48: 5.782696947 | O48: 6.827623844
A49: N/A | K49: Annual | L49: =AVERAGE(L37:L48) -> 6.016121003 | M49: =MAX(M37:M48) -> 56.27977371 | N49: =AVERAGE(N37:N48) -> 6.049485875 | O49: =MAX(O37:O48) -> 7.665980816
J51: =+A5 -> 2025 | K51: mg/Nm3 | L51: Monthly mean of half-hourly averages | M51: Highest half- hourly average | N51: Monthly mean of daily averages | O51: Highest daily average
J52: A4 | K52: Jan
K53: Feb
K54: Mar
K55: Apr
K56: May
K57: Jun
K58: Jul
K59: Aug
K60: Sep
K61: Oct
K62: Nov
K63: Dec
K64: Annual | L64: =AVERAGE(L52:L63) ->  | M64: =MAX(M52:M63) -> 0 | N64: =AVERAGE(N52:N63) ->  | O64: =MAX(O52:O63) -> 0
J66: =+A5 -> 2025 | K66: mg/Nm3 | L66: Monthly mean of half-hourly averages | M66: Highest half- hourly average | N66: Monthly mean of daily averages | O66: Highest daily average
J67: A5 | K67: Jan
K68: Feb
K69: Mar
K70: Apr
K71: May
K72: Jun
K73: Jul
K74: Aug
K75: Sep
K76: Oct
K77: Nov
K78: Dec
K79: Annual | L79: =AVERAGE(L67:L78) ->  | M79: =MAX(M67:M78) -> 0 | N79: =AVERAGE(N67:N78) ->  | O79: =MAX(O67:O78) -> 0

Sheet SO2
A1: =+'Cover Page'!$B$29 -> Annual Performance Report 2025 | E1: =+'Cover Page'!$B$33 -> Kent Enviropower Limited
A3: Monitoring of Sulphur dioxide emissions | D3: Whole Installation | G3: See Notes in Cell Q3 | J3: =+A3 -> Monitoring of Sulphur dioxide emissions | N3: Per Combustion Line | Q3: Notes:
Q4: User to add logic to complete Whole installation, Table A5:G18. From the data in Per Combustion Line, Table J6:O79, subject to No. of lines installed
A5: =+'Cover Page'!C39 -> 2025 | B5: 1/2 Hourly Reference Periods | E5: Daily Reference Periods
A6: mg/Nm3 | B6: 1/2 hourly SO2 ELV | C6: Monthly mean of half-hourly averages | D6: Highest half- hourly average | E6: Daily SO2 ELV | F6: Monthly mean of daily averages | G6: Highest daily average | J6: =+A5 -> 2025 | K6: mg/Nm3 | L6: Monthly mean of half-hourly averages | M6: Highest half- hourly average | N6: Monthly mean of daily averages | O6: Highest daily average
A7: Jan | B7: 200 | C7: =AVERAGE(L7,L22,L37) -> 0.2845340728 | D7: =AVERAGE(M7,M22,M37) -> 10.60979859 | E7: 40 | F7: =AVERAGE(N7,N22,N37) -> 0.2856761604 | G7: =AVERAGE(O7,O22,O37) -> 0.519742012 | J7: A1 | K7: Jan | L7: 0.05859425882 | M7: 3.877994061 | N7: 0.05859416228 | O7: 0.2414990067
A8: Feb | B8: 200 | C8: =AVERAGE(L8,L23,L38) -> 0.3789706573 | D8: 18.16276773 | E8: 40 | F8: =AVERAGE(N8,N23,N38) -> 0.3759453577 | G8: 0.6827183167 | K8: Feb | L8: 0.07554690722 | M8: 9.011136055 | N8: 0.0724286157 | O8: 0.2301200032
A9: Mar | B9: 200 | C9: =AVERAGE(L9,L24,L39) -> 0.4592271634 | D9: 37.94756468 | E9: 40 | F9: =AVERAGE(N9,N24,N39) -> 0.4349945624 | G9: 0.8761696815 | K9: Mar | L9: 0.1984826762 | M9: 93.74886322 | N9: 0.1286971422 | O9: 0.9188429713 | Q9: Whole Installation table A5:G18:
A10: Apr | B10: 200 | C10: =AVERAGE(L10,L25,L40) -> 0.4398904882 | D10: 20.43023284 | E10: 40 | F10: =AVERAGE(N10,N25,N40) -> 0.4546726832 | G10: 1.032373349 | K10: Apr | L10: 0.3306513016 | M10: 10.44445038 | N10: 0.3564116331 | O10: 0.8636749983 | Q10: Mean: for 1/2 hourly and daily periods calculate mean of values across all operational combustion lines for the month
A11: May | B11: 200 | C11: =AVERAGE(L11,L26,L41) -> 0.5593889125 | D11: 29.22405847 | E11: 40 | F11: =AVERAGE(N11,N26,N41) -> 0.5489328177 | G11: 1.440904617 | K11: May | L11: 0.4908004091 | M11: 23.83857346 | N11: 0.490800351 | O11: 1.273939967
A12: Jun | B12: 200 | C12: =AVERAGE(L12,L27,L42) -> 0.6590178437 | D12: 59.09191831 | E12: 40 | F12: =AVERAGE(N12,N27,N42) -> 0.6280086433 | G12: 1.295989652 | K12: Jun | L12: 0.552255535 | M12: 111.6174698 | N12: 0.4659133577 | O12: 0.8891680241
A13: Jul | B13: 200 | C13: =AVERAGE(L13,L28,L43) -> 0.5630390484 | D13: 70.54394849 | E13: 40 | F13: =AVERAGE(N13,N28,N43) -> 0.5149338084 | G13: 1.170240641 | K13: Jul | L13: 0.4827718717 | M13: 105.0563812 | N13: 0.4113232788 | O13: 1.189548969 | Q13: Maximum: for 1/2 hourly and daily periods use the highest value across all operational combustion lines for the month
A14: Aug | B14: 200 | C14: =AVERAGE(L14,L29,L44) -> 0.616348924 | D14: 203.372982 | E14: 40 | F14: =AVERAGE(N14,N29,N44) -> 0.6395145071 | G14: 5.462348779 | K14: Aug | L14: 0.3923839023 | M14: 103.7868195 | N14: 0.410120004 | O14: 3.629003048
A15: Sep | B15: 200 | C15: =AVERAGE(L15,L30,L45) -> 0.4656316628 | D15: 31.05597115 | E15: 40 | F15: =AVERAGE(N15,N30,N45) -> 0.4380125254 | G15: 1.028593322 | K15: Sep | L15: 0.2548817411 | M15: 23.22479439 | N15: 0.2171114116 | O15: 0.6190800071
A16: Oct | B16: 200 | C16: =AVERAGE(L16,L31,L46) -> 1.176772277 | D16: 20.54732736 | E16: 40 | F16: =AVERAGE(N16,N31,N46) -> 1.181946689 | G16: 1.805294375 | K16: Oct | L16: 2.614876678 | M16: 26.96483231 | N16: 2.614338557 | O16: 3.617937088
A17: Nov | B17: 200 | C17: =AVERAGE(L17,L32,L47) -> 1.413490521 | D17: 39.78229396 | E17: 40 | F17: =AVERAGE(N17,N32,N47) -> 1.390284845 | G17: 2.575555364 | K17: Nov | L17: 3.335436415 | M17: 28.16574287 | N17: 3.285572303 | O17: 4.385807991
A18: Dec | B18: 200 | C18: =AVERAGE(L18,L33,L48) -> 1.428918407 | D18: 68.96772234 | E18: 40 | F18: =AVERAGE(N18,N33,N48) -> 1.4474816 | G18: 3.411472281 | K18: Dec | L18: 3.500915107 | M18: 62.96405792 | N18: 3.518194322 | O18: 4.794291019
K19: Annual | L19: =AVERAGE(L7:L18) -> 1.0239664 | M19: =MAX(M7:M18) -> 111.6174698 | N19: =AVERAGE(N7:N18) -> 1.002458762 | O19: =MAX(O7:O18) -> 4.794291019
J21: =+A5 -> 2025 | K21: mg/Nm3 | L21: Monthly mean of half-hourly averages | M21: Highest half- hourly average | N21: Monthly mean of daily averages | O21: Highest daily average
J22: A2 | K22: Jan | L22: 0.4698275915 | M22: 10.1729784 | N22: 0.4733955692 | O22: 0.6699500084
K23: Feb | L23: 0.7131082246 | M23: 22.1942215 | N23: 0.6996514161 | O23: 1.048167944
K24: Mar | L24: 0.805707832 | M24: 17.33963585 | N24: 0.7992255458 | O24: 1.136957049
K25: Apr | L25: 0.6894403261 | M25: 46.51622009 | N25: 0.7129939512 | O25: 1.574025035
K26: May | L26: 0.7884437675 | M26: 51.43602371 | N26: 0.7570723295 | O26: 2.219981909
K27: Jun | L27: 1.031274769 | M27: 53.18014145 | N27: 1.025097758 | O27: 2.289608955
K28: Jul | L28: 0.9167608122 | M28: 97.00085449 | N28: 0.8438936309 | O28: 1.672680974
K29: Aug | L29: 0.7450875118 | M29: 23.75845718 | N29: 0.7561851401 | O29: 1.481925011
K30: Sep | L30: 0.8637085751 | M30: 33.35774231 | N30: 0.8131644994 | O30: 1.391371012
K31: Oct | L31: 0.6528750081 | M31: 27.90870285 | N31: 0.668840573 | O31: 1.276262045
K32: Nov | L32: 0.6792192662 | M32: 60.7962532 | N32: 0.6594663608 | O32: 2.054377079
K33: Dec | L33: 0.6331771409 | M33: 140.264389 | N33: 0.6715874443 | O33: 4.952603817
K34: Annual | L34: =AVERAGE(L22:L33) -> 0.7490525687 | M34: =MAX(M22:M33) -> 140.264389 | N34: =AVERAGE(N22:N33) -> 0.7400478515 | O34: =MAX(O22:O33) -> 4.952603817
J36: =+A5 -> 2025 | K36: mg/Nm3 | L36: Monthly mean of half-hourly averages | M36: Highest half- hourly average | N36: Monthly mean of daily averages | O36: Highest daily average
J37: A3 | K37: Jan | L37: 0.325180368 | M37: 17.77842331 | N37: 0.3250387497 | O37: 0.6477770209
K38: Feb | L38: 0.3482568401 | M38: 23.28294563 | N38: 0.3557560415 | O38: 0.769867003
K39: Mar | L39: 0.373490982 | M39: 2.754194975 | N39: 0.3770609991 | O39: 0.572709024
K40: Apr | L40: 0.2995798371 | M40: 4.330028057 | N40: 0.2946124653 | O40: 0.6594200134
K41: May | L41: 0.3989225608 | M41: 12.39757824 | N41: 0.3989257726 | O41: 0.828791976
K42: Jun | L42: 0.3935232274 | M42: 12.47814369 | N42: 0.3930148146 | O42: 0.709191978
K43: Jul | L43: 0.2895844614 | M43: 9.574609756 | N43: 0.2895845156 | O43: 0.6484919786
K44: Aug | L44: 0.7115753579 | M44: 482.5736694 | N44: 0.7522383773 | O44: 11.27611828
K45: Sep | L45: 0.2783046721 | M45: 36.58537674 | N45: 0.2837616652 | O45: 1.075328946
K46: Oct | L46: 0.2625651437 | M46: 6.768446922 | N46: 0.2626609371 | O46: 0.521683991
K47: Nov | L47: 0.2258158813 | M47: 30.38488579 | N47: 0.2258158701 | O47: 1.286481023
A48: Comments : | K48: Dec | L48: 0.152662973 | M48: 3.674720049 | N48: 0.1526630323 | O48: 0.487522006
A49: N/A | K49: Annual | L49: =AVERAGE(L37:L48) -> 0.3382885254 | M49: =MAX(M37:M48) -> 482.5736694 | N49: =AVERAGE(N37:N48) -> 0.3425944367 | O49: =MAX(O37:O48) -> 11.27611828
J51: =+A5 -> 2025 | K51: mg/Nm3 | L51: Monthly mean of half-hourly averages | M51: Highest half- hourly average | N51: Monthly mean of daily averages | O51: Highest daily average
J52: A4 | K52: Jan
K53: Feb
K54: Mar
K55: Apr
K56: May
K57: Jun
K58: Jul
K59: Aug
K60: Sep
K61: Oct
K62: Nov
K63: Dec
K64: Annual | L64: =AVERAGE(L52:L63) ->  | M64: =MAX(M52:M63) -> 0 | N64: =AVERAGE(N52:N63) ->  | O64: =MAX(O52:O63) -> 0
J66: =+A5 -> 2025 | K66: mg/Nm3 | L66: Monthly mean of half-hourly averages | M66: Highest half- hourly average | N66: Monthly mean of daily averages | O66: Highest daily average
J67: A5 | K67: Jan
K68: Feb
K69: Mar
K70: Apr
K71: May
K72: Jun
K73: Jul
K74: Aug
K75: Sep
K76: Oct
K77: Nov
K78: Dec
K79: Annual | L79: =AVERAGE(L67:L78) ->  | M79: =MAX(M67:M78) -> 0 | N79: =AVERAGE(N67:N78) ->  | O79: =MAX(O67:O78) -> 0

Sheet NOx
A1: =+'Cover Page'!$B$29 -> Annual Performance Report 2025 | E1: =+'Cover Page'!$B$33 -> Kent Enviropower Limited
A3: Monitoring of Oxides of Nitrogen emissions | D3: Whole Installation | G3: See Notes in Cell Q3 | J3: =+A3 -> Monitoring of Oxides of Nitrogen emissions | N3: Per Combustion Line | Q3: Notes:
Q4: User to add logic to complete Whole installation, Table A5:G18. From the data in Per Combustion Line, Table J6:O79, subject to No. of lines installed
A5: =+'Cover Page'!C39 -> 2025 | B5: 1/2 Hourly Reference Periods | E5: Daily Reference Periods
A6: mg/Nm3 | B6: 1/2 hourly NOx ELV | C6: Monthly mean of half-hourly averages | D6: Highest half- hourly average | E6: Daily NOx ELV | F6: Monthly mean of daily averages | G6: Highest daily average | J6: =+A5 -> 2025 | K6: mg/Nm3 | L6: Monthly mean of half-hourly averages | M6: Highest half- hourly average | N6: Monthly mean of daily averages | O6: Highest daily average
A7: Jan | B7: 400 | C7: =AVERAGE(L7,L22,L37) -> 112.7577808 | D7: =AVERAGE(M7,M22,M37) -> 209.8558757 | E7: 180 | F7: =AVERAGE(N7,N22,N37) -> 112.5277974 | G7: =AVERAGE(O7,O22,O37) -> 138.5184123 | J7: A1 | K7: Jan | L7: 104.5111594 | M7: 186.0171204 | N7: 104.5111586 | O7: 124.0564575
A8: Feb | B8: 400 | C8: =AVERAGE(L8,L23,L38) -> 115.7009508 | D8: 229.4243927 | E8: 180 | F8: =AVERAGE(N8,N23,N38) -> 115.3367179 | G8: 145.1060562 | K8: Feb | L8: 110.0383467 | M8: 227.4415894 | N8: 109.9814876 | O8: 119.4590988
A9: Mar | B9: 400 | C9: =AVERAGE(L9,L24,L39) -> 121.1762816 | D9: 209.8900706 | E9: 180 | F9: =AVERAGE(N9,N24,N39) -> 120.8564097 | G9: 146.5393473 | K9: Mar | L9: 124.3037274 | M9: 259.3624878 | N9: 124.0824195 | O9: 161.1655731 | Q9: Whole Installation table A5:G18:
A10: Apr | B10: 400 | C10: =AVERAGE(L10,L25,L40) -> 136.0734126 | D10: 214.4502106 | E10: 180 | F10: =AVERAGE(N10,N25,N40) -> 135.141543 | G10: 152.2395426 | K10: Apr | L10: 133.9723142 | M10: 210.0455475 | N10: 133.8170074 | O10: 143.1564636 | Q10: Mean: for 1/2 hourly and daily periods calculate mean of values across all operational combustion lines for the month
A11: May | B11: 400 | C11: =AVERAGE(L11,L26,L41) -> 135.5377446 | D11: 210.0338491 | E11: 180 | F11: =AVERAGE(N11,N26,N41) -> 135.5417417 | G11: 160.302063 | K11: May | L11: 143.0597269 | M11: 213.185379 | N11: 143.0597251 | O11: 158.290863
A12: Jun | B12: 400 | C12: =AVERAGE(L12,L27,L42) -> 141.0716811 | D12: 217.1722514 | E12: 180 | F12: =AVERAGE(N12,N27,N42) -> 141.2726745 | G12: 165.2700144 | K12: Jun | L12: 144.4733979 | M12: 208.0054626 | N12: 144.7842587 | O12: 165.5318146
A13: Jul | B13: 400 | C13: =AVERAGE(L13,L28,L43) -> 140.9374899 | D13: 293.1853841 | E13: 180 | F13: =AVERAGE(N13,N28,N43) -> 140.1122228 | G13: 159.121521 | K13: Jul | L13: 142.8520662 | M13: 250.9943848 | N13: 142.5144424 | O13: 156.5971832 | Q13: Maximum: for 1/2 hourly and daily periods use the highest value across all operational combustion lines for the month
A14: Aug | B14: 400 | C14: =AVERAGE(L14,L29,L44) -> 144.7218789 | D14: 232.2058309 | E14: 180 | F14: =AVERAGE(N14,N29,N44) -> 144.9118364 | G14: 165.2194316 | K14: Aug | L14: 148.2279099 | M14: 219.2065582 | N14: 147.6617819 | O14: 165.4819183
A15: Sep | B15: 400 | C15: =AVERAGE(L15,L30,L45) -> 143.4479421 | D15: 269.0238037 | E15: 180 | F15: =AVERAGE(N15,N30,N45) -> 142.8314955 | G15: 162.7909292 | K15: Sep | L15: 143.0504978 | M15: 313.8976135 | N15: 143.1589387 | O15: 166.831192
A16: Oct | B16: 400 | C16: =AVERAGE(L16,L31,L46) -> 137.1475965 | D16: 209.5429331 | E16: 180 | F16: =AVERAGE(N16,N31,N46) -> 137.1173753 | G16: 161.3853251 | K16: Oct | L16: 121.0431447 | M16: 210.4672546 | N16: 120.3768682 | O16: 157.2476654
A17: Nov | B17: 400 | C17: =AVERAGE(L17,L32,L47) -> 138.2531772 | D17: 263.2202861 | E17: 180 | F17: =AVERAGE(N17,N32,N47) -> 137.4668289 | G17: 162.07606 | K17: Nov | L17: 140.0901467 | M17: 313.8421326 | N17: 138.0540976 | O17: 171.6696014
A18: Dec | B18: 400 | C18: =AVERAGE(L18,L33,L48) -> 147.7117453 | D18: 239.8829397 | E18: 180 | F18: =AVERAGE(N18,N33,N48) -> 147.6902227 | G18: 163.1713664 | K18: Dec | L18: 157.1047806 | M18: 248.5846252 | N18: 157.3357934 | O18: 166.4176941
K19: Annual | L19: =AVERAGE(L7:L18) -> 134.3939349 | M19: =MAX(M7:M18) -> 313.8976135 | N19: =AVERAGE(N7:N18) -> 134.1114983 | O19: =MAX(O7:O18) -> 171.6696014
J21: =+A5 -> 2025 | K21: mg/Nm3 | L21: Monthly mean of half-hourly averages | M21: Highest half- hourly average | N21: Monthly mean of daily averages | O21: Highest daily average
J22: A2 | K22: Jan | L22: 116.5661559 | M22: 207.7948151 | N22: 115.9451131 | O22: 134.4377594
K23: Feb | L23: 128.9633406 | M23: 233.2867889 | N23: 128.6867769 | O23: 155.6831055
K24: Mar | L24: 127.9527736 | M24: 200.1905975 | N24: 127.8322281 | O24: 149.9046326
K25: Apr | L25: 147.9973918 | M25: 214.1659393 | N25: 147.6137133 | O25: 165.2232361
K26: May | L26: 145.4642039 | M26: 218.0801239 | N26: 145.4761973 | O26: 166.6224823
K27: Jun | L27: 149.7918992 | M27: 198.8056946 | N27: 149.6862955 | O27: 165.1459503
K28: Jul | L28: 146.004008 | M28: 304.3070679 | N28: 143.8658298 | O28: 169.2128754
K29: Aug | L29: 150.0760325 | M29: 219.7820282 | N29: 150.324848 | O29: 167.5773621
K30: Sep | L30: 160.1170903 | M30: 289.7175293 | N30: 158.1662201 | O30: 171.8507538
K31: Oct | L31: 158.9160254 | M31: 219.8097229 | N31: 159.4787995 | O31: 169.8463287
K32: Nov | L32: 151.855331 | M32: 239.3503418 | N32: 151.5323346 | O32: 163.0699158
K33: Dec | L33: 151.07181 | M33: 245.7346344 | N33: 150.7762299 | O33: 165.2878723
K34: Annual | L34: =AVERAGE(L22:L33) -> 144.5646718 | M34: =MAX(M22:M33) -> 304.3070679 | N34: =AVERAGE(N22:N33) -> 144.1153822 | O34: =MAX(O22:O33) -> 171.8507538
J36: =+A5 -> 2025 | K36: mg/Nm3 | L36: Monthly mean of half-hourly averages | M36: Highest half- hourly average | N36: Monthly mean of daily averages | O36: Highest daily average
J37: A3 | K37: Jan | L37: 117.1960271 | M37: 235.7556915 | N37: 117.1271203 | O37: 157.0610199
K38: Feb | L38: 108.1011651 | M38: 227.5447998 | N38: 107.3418891 | O38: 160.1759644
K39: Mar | L39: 111.2723438 | M39: 170.1171265 | N39: 110.6545815 | O39: 128.5478363
K40: Apr | L40: 126.2505316 | M40: 219.1391449 | N40: 123.9939082 | O40: 148.3389282
K41: May | L41: 118.0893029 | M41: 198.8360443 | N41: 118.0893026 | O41: 155.9928436
K42: Jun | L42: 128.9497463 | M42: 244.7055969 | N42: 129.3474692 | O42: 165.1322784
K43: Jul | L43: 133.9563954 | M43: 324.2546997 | N43: 133.956396 | O43: 151.5545044
K44: Aug | L44: 135.8616943 | M44: 257.6289062 | N44: 136.7488792 | O44: 162.5990143
K45: Sep | L45: 127.1762383 | M45: 203.4562683 | N45: 127.1693279 | O45: 149.6908417
K46: Oct | L46: 131.4836196 | M46: 198.3518219 | N46: 131.4964582 | O46: 157.0619812
K47: Nov | L47: 122.814054 | M47: 236.4683838 | N47: 122.8140544 | O47: 151.4886627
A48: Comments : | K48: Dec | L48: 134.9586454 | M48: 225.3295593 | N48: 134.958645 | O48: 157.8085327
A49: N/A | K49: Annual | L49: =AVERAGE(L37:L48) -> 124.6758137 | M49: =MAX(M37:M48) -> 324.2546997 | N49: =AVERAGE(N37:N48) -> 124.474836 | O49: =MAX(O37:O48) -> 165.1322784
J51: =+A5 -> 2025 | K51: mg/Nm3 | L51: Monthly mean of half-hourly averages | M51: Highest half- hourly average | N51: Monthly mean of daily averages | O51: Highest daily average
J52: A4 | K52: Jan
K53: Feb
K54: Mar
K55: Apr
K56: May
K57: Jun
K58: Jul
K59: Aug
K60: Sep
K61: Oct
K62: Nov
K63: Dec
K64: Annual | L64: =AVERAGE(L52:L63) ->  | M64: =MAX(M52:M63) -> 0 | N64: =AVERAGE(N52:N63) ->  | O64: =MAX(O52:O63) -> 0
J66: =+A5 -> 2025 | K66: mg/Nm3 | L66: Monthly mean of half-hourly averages | M66: Highest half- hourly average | N66: Monthly mean of daily averages | O66: Highest daily average
J67: A5 | K67: Jan
K68: Feb
K69: Mar
K70: Apr
K71: May
K72: Jun
K73: Jul
K74: Aug
K75: Sep
K76: Oct
K77: Nov
K78: Dec
K79: Annual | L79: =AVERAGE(L67:L78) ->  | M79: =MAX(M67:M78) -> 0 | N79: =AVERAGE(N67:N78) ->  | O79: =MAX(O67:O78) -> 0

Sheet TOC
A1: =+'Cover Page'!$B$29 -> Annual Performance Report 2025 | E1: =+'Cover Page'!$B$33 -> Kent Enviropower Limited
A3: Monitoring of Total organic carbon emissions | D3: Whole Installation | G3: See Notes in Cell Q3 | J3: =+A3 -> Monitoring of Total organic carbon emissions | N3: Per Combustion Line | Q3: Notes:
Q4: User to add logic to complete Whole installation, Table A5:G18. From the data in Per Combustion Line, Table J6:O79, subject to No. of lines installed
A5: =+'Cover Page'!C39 -> 2025 | B5: 1/2 Hourly Reference Periods | E5: Daily Reference Periods
A6: mg/Nm3 | B6: 1/2 hourly TOC ELV | C6: Monthly mean of half-hourly averages | D6: Highest half- hourly average | E6: Daily TOC ELV | F6: Monthly mean of daily averages | G6: Highest daily average | J6: =+A5 -> 2025 | K6: mg/Nm3 | L6: Monthly mean of half-hourly averages | M6: Highest half- hourly average | N6: Monthly mean of daily averages | O6: Highest daily average
A7: Jan | B7: 10 | C7: =AVERAGE(L7,L22,L37) -> 0.3337627678 | D7: =AVERAGE(M7,M22,M37) -> 21.35118055 | E7: 10 | F7: =AVERAGE(N7,N22,N37) -> 0.3300416617 | G7: =AVERAGE(O7,O22,O37) -> 0.7792113423 | J7: A1 | K7: Jan | L7: 0.2758809603 | M7: 42.16326523 | N7: 0.2757427438 | O7: 1.190060019
A8: Feb | B8: 10 | C8: =AVERAGE(L8,L23,L38) -> 0.3382435073 | D8: 22.72110621 | E8: 10 | F8: =AVERAGE(N8,N23,N38) -> 0.3317592168 | G8: 1.130742669 | K8: Feb | L8: 0.2508171823 | M8: 19.99225044 | N8: 0.2509521911 | O8: 0.898293972
A9: Mar | B9: 10 | C9: =AVERAGE(L9,L24,L39) -> 0.3683677416 | D9: 23.33772548 | E9: 10 | F9: =AVERAGE(N9,N24,N39) -> 0.3564778353 | G9: 0.7970193227 | K9: Mar | L9: 0.3233544262 | M9: 44.88478851 | N9: 0.2991218913 | O9: 1.232679963 | Q9: Whole Installation table A5:G18:
A10: Apr | B10: 10 | C10: =AVERAGE(L10,L25,L40) -> 0.3138018306 | D10: 7.487860282 | E10: 10 | F10: =AVERAGE(N10,N25,N40) -> 0.3028975495 | G10: 0.5129430095 | K10: Apr | L10: 0.2991284668 | M10: 7.24685812 | N10: 0.2989410507 | O10: 0.5265210271 | Q10: Mean: for 1/2 hourly and daily periods calculate mean of values across all operational combustion lines for the month
A11: May | B11: 10 | C11: =AVERAGE(L11,L26,L41) -> 0.3339186436 | D11: 23.34631379 | E11: 10 | F11: =AVERAGE(N11,N26,N41) -> 0.3314707637 | G11: 1.067183316 | K11: May | L11: 0.3498001696 | M11: 14.36065197 | N11: 0.3497949344 | O11: 1.013972998
A12: Jun | B12: 10 | C12: =AVERAGE(L12,L27,L42) -> 0.4432207903 | D12: 79.09098053 | E12: 10 | F12: =AVERAGE(N12,N27,N42) -> 0.3485504749 | G12: 0.7375659843 | K12: Jun | L12: 0.4934038357 | M12: 199.9044495 | N12: 0.2253977864 | O12: 0.3684180081
A13: Jul | B13: 10 | C13: =AVERAGE(L13,L28,L43) -> 0.467200217 | D13: 127.3447004 | E13: 10 | F13: =AVERAGE(N13,N28,N43) -> 0.3714717289 | G13: 0.7620090048 | K13: Jul | L13: 0.6155004338 | M13: 360.7687378 | N13: 0.3261012799 | O13: 0.712346971 | Q13: Maximum: for 1/2 hourly and daily periods use the highest value across all operational combustion lines for the month
A14: Aug | B14: 10 | C14: =AVERAGE(L14,L29,L44) -> 0.5414525779 | D14: 96.46281544 | E14: 10 | F14: =AVERAGE(N14,N29,N44) -> 0.5401813038 | G14: 2.750237008 | K14: Aug | L14: 0.6843389275 | M14: 223.3819885 | N14: 0.6975732225 | O14: 5.776710987
A15: Sep | B15: 10 | C15: =AVERAGE(L15,L30,L45) -> 0.5068401185 | D15: 23.82187653 | E15: 10 | F15: =AVERAGE(N15,N30,N45) -> 0.4713059053 | G15: 0.7854813139 | K15: Sep | L15: 0.5633025395 | M15: 43.97053909 | N15: 0.5200240009 | O15: 1.183177948
A16: Oct | B16: 10 | C16: =AVERAGE(L16,L31,L46) -> 0.4219235466 | D16: 14.0665849 | E16: 10 | F16: =AVERAGE(N16,N31,N46) -> 0.4002380971 | G16: 0.670282344 | K16: Oct | L16: 0.5190481072 | M16: 23.67212868 | N16: 0.4767491911 | O16: 0.7759690285
A17: Nov | B17: 10 | C17: =AVERAGE(L17,L32,L47) -> 0.5184509024 | D17: 14.25830841 | E17: 10 | F17: =AVERAGE(N17,N32,N47) -> 0.5148489188 | G17: 0.923001349 | K17: Nov | L17: 0.6338821287 | M17: 18.9068203 | N17: 0.6323642119 | O17: 1.147276044
A18: Dec | B18: 10 | C18: =AVERAGE(L18,L33,L48) -> 0.6148092596 | D18: 17.0073539 | E18: 10 | F18: =AVERAGE(N18,N33,N48) -> 0.5995672823 | G18: 1.177703996 | K18: Dec | L18: 0.6705802614 | M18: 24.70658875 | N18: 0.6562801092 | O18: 1.467903972
K19: Annual | L19: =AVERAGE(L7:L18) -> 0.4732531199 | M19: =MAX(M7:M18) -> 360.7687378 | N19: =AVERAGE(N7:N18) -> 0.4174202177 | O19: =MAX(O7:O18) -> 5.776710987
J21: =+A5 -> 2025 | K21: mg/Nm3 | L21: Monthly mean of half-hourly averages | M21: Highest half- hourly average | N21: Monthly mean of daily averages | O21: Highest daily average
J22: A2 | K22: Jan | L22: 0.2454204193 | M22: 3.143930912 | N22: 0.2448547826 | O22: 0.345912993
K23: Feb | L23: 0.3018623386 | M23: 20.92998505 | N23: 0.297938502 | O23: 1.105522037
K24: Mar | L24: 0.3273212795 | M24: 18.76222801 | N24: 0.3146833067 | O24: 0.5327479839
K25: Apr | L25: 0.265433594 | M25: 11.61321163 | N25: 0.261503262 | O25: 0.5266579986
K26: May | L26: 0.3302404959 | M26: 47.10621262 | N26: 0.3229020988 | O26: 1.633116961
K27: Jun | L27: 0.4982229509 | M27: 25.31229591 | N27: 0.4860285592 | O27: 1.253384948
K28: Jul | L28: 0.4299131246 | M28: 17.62243843 | N28: 0.4321267747 | O28: 0.9095370173
K29: Aug | L29: 0.5421228624 | M29: 58.21432495 | N29: 0.5265712789 | O29: 1.864649057
K30: Sep | L30: 0.5606987588 | M30: 24.7663765 | N30: 0.5050650969 | O30: 0.682980001
K31: Oct | L31: 0.3186673419 | M31: 9.982811928 | N31: 0.2959966463 | O31: 0.5788559914
K32: Nov | L32: 0.4631902655 | M32: 13.27110386 | N32: 0.4539022791 | O32: 0.9520559907
K33: Dec | L33: 0.7124110403 | M33: 24.57236099 | N33: 0.6809852555 | O33: 1.546555042
K34: Annual | L34: =AVERAGE(L22:L33) -> 0.4162920393 | M34: =MAX(M22:M33) -> 58.21432495 | N34: =AVERAGE(N22:N33) -> 0.4018798202 | O34: =MAX(O22:O33) -> 1.864649057
J36: =+A5 -> 2025 | K36: mg/Nm3 | L36: Monthly mean of half-hourly averages | M36: Highest half- hourly average | N36: Monthly mean of daily averages | O36: Highest daily average
J37: A3 | K37: Jan | L37: 0.4799869237 | M37: 18.74634552 | N37: 0.4695274588 | O37: 0.8016610146
K38: Feb | L38: 0.4620510011 | M38: 27.24108315 | N38: 0.4463869573 | O38: 1.388411999
K39: Mar | L39: 0.454427519 | M39: 6.366159916 | N39: 0.455628308 | O39: 0.6256300211
K40: Apr | L40: 0.376843431 | M40: 3.603511095 | N40: 0.3482483357 | O40: 0.485650003
K41: May | L41: 0.3217152653 | M41: 8.572076797 | N41: 0.3217152578 | O41: 0.5544599891
K42: Jun | L42: 0.3380355842 | M42: 12.05619621 | N42: 0.334225079 | O42: 0.5908949971
K43: Jul | L43: 0.3561870926 | M43: 3.642925024 | N43: 0.3561871321 | O43: 0.6641430259
K44: Aug | L44: 0.3978959439 | M44: 7.792132854 | N44: 0.3963994099 | O44: 0.6093509793
K45: Sep | L45: 0.396519057 | M45: 2.728713989 | N45: 0.3888286182 | O45: 0.4902859926
K46: Oct | L46: 0.4280551907 | M46: 8.54481411 | N46: 0.427968454 | O46: 0.6560220122
K47: Nov | L47: 0.458280313 | M47: 10.59700108 | N47: 0.4582802653 | O47: 0.6696720123
A48: Comments : | K48: Dec | L48: 0.4614364771 | M48: 1.743111968 | N48: 0.4614364822 | O48: 0.5186529756
A49: N/A | K49: Annual | L49: =AVERAGE(L37:L48) -> 0.4109528165 | M49: =MAX(M37:M48) -> 27.24108315 | N49: =AVERAGE(N37:N48) -> 0.4054026465 | O49: =MAX(O37:O48) -> 1.388411999
J51: =+A5 -> 2025 | K51: mg/Nm3 | L51: Monthly mean of half-hourly averages | M51: Highest half- hourly average | N51: Monthly mean of daily averages | O51: Highest daily average
J52: A4 | K52: Jan
K53: Feb
K54: Mar
K55: Apr
K56: May
K57: Jun
K58: Jul
K59: Aug
K60: Sep
K61: Oct
K62: Nov
K63: Dec
K64: Annual | L64: =AVERAGE(L52:L63) ->  | M64: =MAX(M52:M63) -> 0 | N64: =AVERAGE(N52:N63) ->  | O64: =MAX(O52:O63) -> 0
J66: =+A5 -> 2025 | K66: mg/Nm3 | L66: Monthly mean of half-hourly averages | M66: Highest half- hourly average | N66: Monthly mean of daily averages | O66: Highest daily average
J67: A5 | K67: Jan
K68: Feb
K69: Mar
K70: Apr
K71: May
K72: Jun
K73: Jul
K74: Aug
K75: Sep
K76: Oct
K77: Nov
K78: Dec
K79: Annual | L79: =AVERAGE(L67:L78) ->  | M79: =MAX(M67:M78) -> 0 | N79: =AVERAGE(N67:N78) ->  | O79: =MAX(O67:O78) -> 0

Sheet Particulates
A1: =+'Cover Page'!$B$29 -> Annual Performance Report 2025 | E1: =+'Cover Page'!$B$33 -> Kent Enviropower Limited
A3: Monitoring of Particulate matter emissions | D3: Whole Installation | G3: See Notes in Cell Q3 | J3: =+A3 -> Monitoring of Particulate matter emissions | N3: Per Combustion Line | Q3: Notes:
A5: =+'Cover Page'!C39 -> 2025 | B5: 1/2 Hourly Reference Periods | E5: Daily Reference Periods | Q5: User to add logic to complete Whole installation, Table A5:G18. From the data in Per Combustion Line, Table J6:O79, subject to No. of lines installed
A6: mg/Nm3 | B6: 1/2 hourly PM ELV | C6: Monthly mean of half-hourly averages | D6: Highest half- hourly average | E6: Daily PM ELV | F6: Monthly mean of daily averages | G6: Highest daily average | J6: =+A5 -> 2025 | K6: mg/Nm3 | L6: Monthly mean of half-hourly averages | M6: Highest half- hourly average | N6: Monthly mean of daily averages | O6: Highest daily average
A7: Jan | B7: 30 | C7: =AVERAGE(L7,L22,L37) -> 0.8644494631 | D7: =AVERAGE(M7,M22,M37) -> 1.472476999 | E7: 5 | F7: =AVERAGE(N7,N22,N37) -> 0.8626253562 | G7: =AVERAGE(O7,O22,O37) -> 1.091299971 | J7: A1 | K7: Jan | L7: 0.8608769744 | M7: 1.334491014 | N7: 0.8608769063 | O7: 0.8966599703
A8: Feb | B8: 30 | C8: =AVERAGE(L8,L23,L38) -> 1.018799269 | D8: 2.726297061 | E8: 5 | F8: =AVERAGE(N8,N23,N38) -> 1.022597231 | G8: 1.564129015 | K8: Feb | L8: 0.8751051681 | M8: 1.396410942 | N8: 0.8746825778 | O8: 0.9476670027
A9: Mar | B9: 30 | C9: =AVERAGE(L9,L24,L39) -> 1.016800115 | D9: 1.765639265 | E9: 5 | F9: =AVERAGE(N9,N24,N39) -> 1.015467632 | G9: 1.145816008 | K9: Mar | L9: 1.107071903 | M9: 2.282435894 | N9: 1.105077469 | O9: 1.251834035
A10: Apr | B10: 30 | C10: =AVERAGE(L10,L25,L40) -> 1.458939514 | D10: 2.903110902 | E10: 5 | F10: =AVERAGE(N10,N25,N40) -> 1.460811627 | G10: 2.253145655 | K10: Apr | L10: 1.323907501 | M10: 2.191128969 | N10: 1.301144732 | O10: 1.478644967 | Q10: Whole Installation table A5:G18:
A11: May | B11: 30 | C11: =AVERAGE(L11,L26,L41) -> 1.698732804 | D11: 3.154264053 | E11: 5 | F11: =AVERAGE(N11,N26,N41) -> 1.69826303 | G11: 2.341787299 | K11: May | L11: 1.43748422 | M11: 2.07961297 | N11: 1.437476585 | O11: 1.700467944 | Q11: Mean: for 1/2 hourly and daily periods calculate mean of values across all operational combustion lines for the month
A12: Jun | B12: 30 | C12: =AVERAGE(L12,L27,L42) -> 1.686616796 | D12: 4.313004335 | E12: 5 | F12: =AVERAGE(N12,N27,N42) -> 1.684925669 | G12: 2.510842005 | K12: Jun | L12: 2.103930042 | M12: 4.148590088 | N12: 2.10211747 | O12: 3.311069012
A13: Jul | B13: 30 | C13: =AVERAGE(L13,L28,L43) -> 2.178019946 | D13: 5.659339428 | E13: 5 | F13: =AVERAGE(N13,N28,N43) -> 2.178539963 | G13: 3.327900648 | K13: Jul | L13: 2.893591611 | M13: 7.418065071 | N13: 2.91919589 | O13: 4.005353928
A14: Aug | B14: 30 | C14: =AVERAGE(L14,L29,L44) -> 2.343561698 | D14: 4.647030354 | E14: 5 | F14: =AVERAGE(N14,N29,N44) -> 2.334216103 | G14: 3.127124627 | K14: Aug | L14: 2.644972102 | M14: 4.472842216 | N14: 2.633530661 | O14: 3.381433964 | Q14: Maximum: for 1/2 hourly and daily periods use the highest value across all operational combustion lines for the month
A15: Sep | B15: 30 | C15: =AVERAGE(L15,L30,L45) -> 2.559311625 | D15: 4.494289398 | E15: 5 | F15: =AVERAGE(N15,N30,N45) -> 2.512062094 | G15: 3.31088233 | K15: Sep | L15: 2.665455359 | M15: 4.106719017 | N15: 2.621755069 | O15: 3.078850985
A16: Oct | B16: 30 | C16: =AVERAGE(L16,L31,L46) -> 2.49687299 | D16: 4.687804699 | E16: 5 | F16: =AVERAGE(N16,N31,N46) -> 2.503654289 | G16: 3.182552656 | K16: Oct | L16: 2.241197659 | M16: 4.199128151 | N16: 2.277417935 | O16: 2.86697793
A17: Nov | B17: 30 | C17: =AVERAGE(L17,L32,L47) -> 2.118120037 | D17: 7.13815403 | E17: 5 | F17: =AVERAGE(N17,N32,N47) -> 2.127758888 | G17: 3.730600357 | K17: Nov | L17: 2.543675986 | M17: 8.758372307 | N17: 2.586386718 | O17: 4.696206093
A18: Dec | B18: 30 | C18: =AVERAGE(L18,L33,L48) -> 2.421261051 | D18: 6.131267389 | E18: 5 | F18: =AVERAGE(N18,N33,N48) -> 2.38670432 | G18: 3.232448022 | K18: Dec | L18: 2.681110728 | M18: 6.697750092 | N18: 2.584948994 | O18: 3.601811886
K19: Annual | L19: =AVERAGE(L7:L18) -> 1.948198271 | M19: =MAX(M7:M18) -> 8.758372307 | N19: =AVERAGE(N7:N18) -> 1.942050917 | O19: =MAX(O7:O18) -> 4.696206093
J21: =+A5 -> 2025 | K21: mg/Nm3 | L21: Monthly mean of half-hourly averages | M21: Highest half- hourly average | N21: Monthly mean of daily averages | O21: Highest daily average
J22: A2 | K22: Jan | L22: 0.8518192662 | M22: 1.306530952 | N22: 0.8460211728 | O22: 1.008777976
K23: Feb | L23: 0.8894079381 | M23: 1.338037014 | N23: 0.8873806785 | O23: 0.9648500085
K24: Mar | L24: 0.9761145639 | M24: 1.389475942 | N24: 0.9750749652 | O24: 1.082913995
K25: Apr | L25: 1.297469513 | M25: 2.174120903 | N25: 1.313287945 | O25: 1.877347946
K26: May | L26: 1.790689415 | M26: 2.815165043 | N26: 1.789287742 | O26: 1.923239946
K27: Jun | L27: 2.251383485 | M27: 3.614758015 | N27: 2.252098246 | O27: 3.112967014
K28: Jul | L28: 2.348663685 | M28: 4.111172199 | N28: 2.324619472 | O28: 3.377350092
K29: Aug | L29: 2.536845357 | M29: 4.165186882 | N29: 2.533470684 | O29: 3.027427912
K30: Sep | L30: 3.119968554 | M30: 5.460246086 | N30: 3.063582492 | O30: 3.919584036
K31: Oct | L31: 2.597292743 | M31: 5.054664135 | N31: 2.579175038 | O31: 3.227154016
K32: Nov | L32: 2.299147574 | M32: 9.102584839 | N32: 2.285353475 | O32: 3.927181959
K33: Dec | L33: 2.022172729 | M33: 4.620509148 | N33: 2.014664298 | O33: 2.406485081
K34: Annual | L34: =AVERAGE(L22:L33) -> 1.915081235 | M34: =MAX(M22:M33) -> 9.102584839 | N34: =AVERAGE(N22:N33) -> 1.905334684 | O34: =MAX(O22:O33) -> 3.927181959
J36: =+A5 -> 2025 | K36: mg/Nm3 | L36: Monthly mean of half-hourly averages | M36: Highest half- hourly average | N36: Monthly mean of daily averages | O36: Highest daily average
J37: A3 | K37: Jan | L37: 0.8806521486 | M37: 1.77640903 | N37: 0.8809779895 | O37: 1.368461967
K38: Feb | L38: 1.291884702 | M38: 5.444443226 | N38: 1.305728438 | O38: 2.779870033
K39: Mar | L39: 0.9672138781 | M39: 1.62500596 | N39: 0.9662504609 | O39: 1.102699995
K40: Apr | L40: 1.755441528 | M40: 4.344082832 | N40: 1.768002204 | O40: 3.403444052
K41: May | L41: 1.868024778 | M41: 4.568014145 | N41: 1.868024763 | O41: 3.401654005
K42: Jun | L42: 0.7045368614 | M42: 5.175664902 | N42: 0.7005612916 | O42: 1.10848999
K43: Jul | L43: 1.291804542 | M43: 5.448781013 | N43: 1.291804525 | O43: 2.600997925
K44: Aug | L44: 1.848867635 | M44: 5.303061962 | N44: 1.835646965 | O44: 2.972512007
K45: Sep | L45: 1.892510964 | M45: 3.915903091 | N45: 1.85084872 | O45: 2.934211969
K46: Oct | L46: 2.65212857 | M46: 4.809621811 | N46: 2.654369895 | O46: 3.45352602
K47: Nov | L47: 1.51153655 | M47: 3.553504944 | N47: 1.511536471 | O47: 2.568413019
A48: Comments : | K48: Dec | L48: 2.560499696 | M48: 7.075542927 | N48: 2.560499668 | O48: 3.689047098
A49: N/A | K49: Annual | L49: =AVERAGE(L37:L48) -> 1.602091821 | M49: =MAX(M37:M48) -> 7.075542927 | N49: =AVERAGE(N37:N48) -> 1.599520949 | O49: =MAX(O37:O48) -> 3.689047098
J51: =+A5 -> 2025 | K51: mg/Nm3 | L51: Monthly mean of half-hourly averages | M51: Highest half- hourly average | N51: Monthly mean of daily averages | O51: Highest daily average
J52: A4 | K52: Jan
K53: Feb
K54: Mar
K55: Apr
K56: May
K57: Jun
K58: Jul
K59: Aug
K60: Sep
K61: Oct
K62: Nov
K63: Dec
K64: Annual | L64: =AVERAGE(L52:L63) ->  | M64: =MAX(M52:M63) -> 0 | N64: =AVERAGE(N52:N63) ->  | O64: =MAX(O52:O63) -> 0
J66: =+A5 -> 2025 | K66: mg/Nm3 | L66: Monthly mean of half-hourly averages | M66: Highest half- hourly average | N66: Monthly mean of daily averages | O66: Highest daily average
J67: A5 | K67: Jan
K68: Feb
K69: Mar
K70: Apr
K71: May
K72: Jun
K73: Jul
K74: Aug
K75: Sep
K76: Oct
K77: Nov
K78: Dec
K79: Annual | L79: =AVERAGE(L67:L78) ->  | M79: =MAX(M67:M78) -> 0 | N79: =AVERAGE(N67:N78) ->  | O79: =MAX(O67:O78) -> 0

Sheet CO 0.5 hourly
A1: =+'Cover Page'!$B$29 -> Annual Performance Report 2025 | E1: =+'Cover Page'!$B$33 -> Kent Enviropower Limited
A3: Monitoring of Carbon Monoxide (half hourly) | D3: Whole Installation | G3: See Notes in Cell Q3 | J3: =+A3 -> Monitoring of Carbon Monoxide (half hourly) | N3: Per Combustion Line | Q3: Notes:
A5: Please complete this tab for your plant if you have 1/2 hourly CO ELVs; otherwise, leave it blank and complete the CO 95% 10 min tab
Q7: User to add logic to complete Whole installation, Table A5:G18. From the data in Per Combustion Line, Table J6:O79, subject to No. of lines installed
A8: =+'Cover Page'!C39 -> 2025 | B8: 1/2 Hourly Reference Periods | E8: Daily Reference Periods
A9: mg/Nm3 | B9: 1/2 hourly CO ELV | C9: Monthly mean of half-hourly averages | D9: Highest half- hourly average | E9: Daily CO ELV | F9: Monthly mean of daily averages | G9: Highest daily average | J9: =+A8 -> 2025 | K9: mg/Nm3 | L9: Monthly mean of half-hourly averages | M9: Highest half- hourly average | N9: Monthly mean of daily averages | O9: Highest daily average
A10: Jan | B10: 100 | E10: 50 | J10: A1 | K10: Jan
A11: Feb | B11: =+B10 -> 100 | E11: =+E10 -> 50 | K11: Feb
A12: Mar | B12: =+B11 -> 100 | E12: =+E11 -> 50 | K12: Mar | Q12: Whole Installation table A5:G18:
A13: Apr | B13: 100 | E13: 50 | K13: Apr | Q13: Mean: for 1/2 hourly and daily periods calculate mean of values across all operational combustion lines for the month
A14: May | B14: 100 | E14: 50 | K14: May
A15: Jun | B15: 100 | E15: 50 | K15: Jun
A16: Jul | B16: 100 | E16: 50 | K16: Jul | Q16: Maximum: for 1/2 hourly and daily periods use the highest value across all operational combustion lines for the month
A17: Aug | B17: 100 | E17: 50 | K17: Aug
A18: Sep | B18: 100 | E18: 50 | K18: Sep
A19: Oct | B19: 100 | E19: 50 | K19: Oct
A20: Nov | B20: 100 | E20: 50 | K20: Nov
A21: Dec | B21: 100 | E21: 50 | K21: Dec
K22: Annual | L22: =AVERAGE(L10:L21) ->  | M22: =MAX(M10:M21) -> 0 | N22: =AVERAGE(N10:N21) ->  | O22: =MAX(O10:O21) -> 0
J24: =+A8 -> 2025 | K24: mg/Nm3 | L24: Monthly mean of half-hourly averages | M24: Highest half- hourly average | N24: Monthly mean of daily averages | O24: Highest daily average
J25: A2 | K25: Jan
K26: Feb
K27: Mar
K28: Apr
K29: May
K30: Jun
K31: Jul
K32: Aug
K33: Sep
K34: Oct
K35: Nov
K36: Dec
K37: Annual | L37: =AVERAGE(L25:L36) ->  | M37: =MAX(M25:M36) -> 0 | N37: =AVERAGE(N25:N36) ->  | O37: =MAX(O25:O36) -> 0
J39: =+A8 -> 2025 | K39: mg/Nm3 | L39: Monthly mean of half-hourly averages | M39: Highest half- hourly average | N39: Monthly mean of daily averages | O39: Highest daily average
J40: A3 | K40: Jan
K41: Feb
K42: Mar
K43: Apr
K44: May
K45: Jun
K46: Jul
K47: Aug
K48: Sep
K49: Oct
K50: Nov
A51: Comments : | K51: Dec
A52: N/A CO half hour is not used | K52: Annual | L52: =AVERAGE(L40:L51) ->  | M52: =MAX(M40:M51) -> 0 | N52: =AVERAGE(N40:N51) ->  | O52: =MAX(O40:O51) -> 0
J54: =+A8 -> 2025 | K54: mg/Nm3 | L54: Monthly mean of half-hourly averages | M54: Highest half- hourly average | N54: Monthly mean of daily averages | O54: Highest daily average
J55: A4 | K55: Jan
K56: Feb
K57: Mar
K58: Apr
K59: May
K60: Jun
K61: Jul
K62: Aug
K63: Sep
K64: Oct
K65: Nov
K66: Dec
K67: Annual | L67: =AVERAGE(L55:L66) ->  | M67: =MAX(M55:M66) -> 0 | N67: =AVERAGE(N55:N66) ->  | O67: =MAX(O55:O66) -> 0
J69: =+A8 -> 2025 | K69: mg/Nm3 | L69: Monthly mean of half-hourly averages | M69: Highest half- hourly average | N69: Monthly mean of daily averages | O69: Highest daily average
J70: A5 | K70: Jan
K71: Feb
K72: Mar
K73: Apr
K74: May
K75: Jun
K76: Jul
K77: Aug
K78: Sep
K79: Oct
K80: Nov
K81: Dec
K82: Annual | L82: =AVERAGE(L70:L81) ->  | M82: =MAX(M70:M81) -> 0 | N82: =AVERAGE(N70:N81) ->  | O82: =MAX(O70:O81) -> 0

Sheet CO 95% 10 min
A1: =+'Cover Page'!$B$29 -> Annual Performance Report 2025 | E1: =+'Cover Page'!$B$33 -> Kent Enviropower Limited
A3: Monitoring of Carbon Monoxide (10-minute avg) | E3: Whole Installation | H3: See Notes in Cell S3 | J3: =+A3 -> Monitoring of Carbon Monoxide (10-minute avg) | O3: Per Combustion Line | Q3: Notes: | S3: Notes:
A5: Please complete this tab for your plant if you have 10-minute average CO ELVs; otherwise, leave it blank and complete the CO 0.5 hourly tab
S7: User to add logic to complete Whole installation, Table A5:H18. From the data in Per Combustion Line, Table K6:Q79, subject to No. of lines installed
A8: =+'Cover Page'!C39 -> 2025 | B8: 10-minute Reference Periods | F8: Daily Reference Periods
A9: mg/Nm3 | B9: 95%ile 10-min avg CO ELV | C9: Highest daily 95%ile 10-min average | D9: Monthly mean of 10-min averages | E9: Highest 10-min average | F9: Daily CO ELV | G9: Monthly mean of daily averages | H9: Highest daily average | K9: =+A8 -> 2025 | L9: mg/Nm3 | M9: Highest daily 95%ile 10-min average | N9: Monthly mean of 10-min averages | O9: Highest 10-min average | P9: Monthly mean of daily averages | Q9: Highest daily average
A10: Jan | B10: 150 | C10: =AVERAGE(M10,M25,M40) -> 5.434534589 | D10: =AVERAGE(N10,N25,N40) -> 2.499897297 | E10: =AVERAGE(O10,O25,O40) -> 1277.81783 | F10: 50 | G10: =AVERAGE(P10,P25,P40) -> 2.480341875 | H10: =AVERAGE(Q10,Q25,Q40) -> 9.316530546 | K10: A1 | L10: Jan | M10: 0.5018919706 | N10: 1.366690091 | O10: 1045.475586 | P10: 1.366412384 | Q10: 7.559016228
A11: Feb | B11: =+B10 -> 150 | C11: =AVERAGE(M11,M26,M41) -> 6.820831954 | D11: 2.574178077 | E11: 662.0747274 | F11: =+F10 -> 50 | G11: =AVERAGE(P11,P26,P41) -> 2.449854756 | H11: 8.036376476 | L11: Feb | M11: 0.6645119786 | N11: 0.8255942381 | O11: 360.4346313 | P11: 0.7989031927 | Q11: 3.357542038
A12: Mar | B12: =+B11 -> 150 | C12: =AVERAGE(M12,M27,M42) -> 6.638285955 | D12: 3.538062363 | E12: 2471.044454 | F12: =+F11 -> 50 | G12: =AVERAGE(P12,P27,P42) -> 2.939102763 | H12: 16.61121146 | L12: Mar | M12: 1.003427029 | N12: 3.51614775 | O12: 5005.165039 | P12: 2.07923077 | Q12: 29.38264847 | S12: Whole Installation table A5:H18:
A13: Apr | B13: 150 | C13: =AVERAGE(M13,M28,M43) -> 3.845564286 | D13: 2.142311845 | E13: 537.7398478 | F13: 50 | G13: =AVERAGE(P13,P28,P43) -> 1.912274621 | H13: 8.438394864 | L13: Apr | M13: 3.471471071 | N13: 1.635596659 | O13: 383.2735596 | P13: 1.55463207 | Q13: 4.883353233 | S13: Mean: for 10-min and daily periods use average of all operational combustion lines.
A14: May | B14: 150 | C14: =AVERAGE(M14,M29,M44) -> 9.603383859 | D14: 3.583982026 | E14: 972.1971232 | F14: 50 | G14: =AVERAGE(P14,P29,P44) -> 3.48663279 | H14: 18.19138209 | L14: May | M14: 14.03063679 | N14: 4.107689806 | O14: 878.022644 | P14: 4.107689811 | Q14: 19.05162048
A15: Jun | B15: 150 | C15: =AVERAGE(M15,M30,M45) -> 19.54791625 | D15: 6.598220537 | E15: 4816.844014 | F15: 50 | G15: =AVERAGE(P15,P30,P45) -> 4.93418668 | H15: 12.94527578 | L15: Jun | M15: 5.040359974 | N15: 7.034936688 | O15: 12053.19238 | P15: 2.297211747 | Q15: 5.469670773
A16: Jul | B16: 150 | C16: =AVERAGE(M16,M31,M46) -> 17.48512681 | D16: 6.550950885 | E16: 5202.100962 | F16: 50 | G16: =AVERAGE(P16,P31,P46) -> 5.012158402 | H16: 14.98539066 | L16: Jul | M16: 10.42779636 | N16: 8.224112614 | O16: 13852.39941 | P16: 4.040275591 | Q16: 15.77713299 | S16: Maximum: for 10-min and daily periods use the highest of all operational combustion lines in any month.
A17: Aug | B17: 150 | C17: =AVERAGE(M17,M32,M47) -> 22.10940711 | D17: 7.886757649 | E17: 3125.181274 | F17: 50 | G17: =AVERAGE(P17,P32,P47) -> 7.809669768 | H17: 32.23309708 | L17: Aug | M17: 15.29148674 | N17: 11.05434556 | O17: 5849.291992 | P17: 11.01826645 | Q17: 58.63572311
A18: Sep | B18: 150 | C18: =AVERAGE(M18,M33,M48) -> 29.7311751 | D18: 9.989139013 | E18: 2714.905558 | F18: 50 | G18: =AVERAGE(P18,P33,P48) -> 8.34661106 | H18: 20.68770313 | L18: Sep | M18: 16.96416092 | N18: 13.90931002 | O18: 6262.113281 | P18: 10.61797175 | Q18: 35.012043
A19: Oct | B19: 150 | C19: =AVERAGE(M19,M34,M49) -> 24.28851493 | D19: 6.944172697 | E19: 869.3741557 | F19: 50 | G19: =AVERAGE(P19,P34,P49) -> 6.179299206 | H19: 15.19556888 | L19: Oct | M19: 22.43026543 | N19: 9.015018322 | O19: 1179.670288 | P19: 7.514759228 | Q19: 17.31967163
A20: Nov | B20: 150 | C20: =AVERAGE(M20,M35,M50) -> 12.60851749 | D20: 6.844274674 | E20: 1516.355387 | F20: 50 | G20: =AVERAGE(P20,P35,P50) -> 6.804879873 | H20: 18.17254512 | L20: Nov | M20: 12.03120518 | N20: 7.935126312 | O20: 2378.491943 | P20: 8.027132919 | Q20: 24.01409912
A21: Dec | B21: 150 | C21: =AVERAGE(M21,M36,M51) -> 26.41685923 | D21: 9.207694281 | E21: 2084.086161 | F21: 50 | G21: =AVERAGE(P21,P36,P51) -> 8.757396697 | H21: 27.51207177 | L21: Dec | M21: 16.21269035 | N21: 10.81731398 | O21: 4273.111816 | P21: 10.68747516 | Q21: 45.85038376
L22: Annual | M22: 6.914908886 | O22: 13852.39941 | P22: 5.136976641 | Q22: 58.63572311
K24: =+A8 -> 2025 | L24: mg/Nm3 | M24: Highest daily 95%ile 10-min average | N24: Monthly mean of 10-min averages | O24: Highest 10-min average | P24: Monthly mean of daily averages | Q24: Highest daily average
K25: A2 | L25: Jan | M25: 3.981280088 | N25: 2.292579231 | O25: 818.8531494 | P25: 2.293750861 | Q25: 6.060299873
L26: Feb | M26: 3.451224089 | N26: 2.984851899 | O26: 813.0285034 | P26: 2.928812479 | Q26: 7.727344036
L27: Mar | M27: 7.504930973 | N27: 3.734293271 | O27: 1591.116577 | P27: 3.31423044 | Q27: 13.03854275
L28: Apr | M28: 3.806787014 | N28: 2.85231311 | O28: 916.3276978 | P28: 2.733571792 | Q28: 12.79073143
L29: May | M29: 4.337069035 | N29: 3.878518303 | O29: 1359.75061 | P29: 3.586470603 | Q29: 24.88449097
L30: Jun | M30: 40.42161942 | N30: 9.317933554 | O30: 1820.124146 | P30: 9.183531322 | Q30: 22.19528961
L31: Jul | M31: 32.55708313 | N31: 8.542462276 | O31: 1391.091309 | P31: 8.109186324 | Q31: 16.17860603
L32: Aug | M32: 37.66714478 | N32: 8.188376236 | O32: 1168.214966 | P32: 7.921221707 | Q32: 20.69991493
L33: Sep | M33: 55.59339142 | N33: 12.49467574 | O33: 1147.585205 | P33: 10.8512558 | Q33: 17.07538986
L34: Oct | M34: 43.88484955 | N34: 9.530890813 | O34: 948.9990234 | P34: 8.734599675 | Q34: 20.4955349
L35: Nov | M35: 24.59135628 | N35: 10.91036452 | O35: 1314.638184 | P35: 10.70017348 | Q35: 21.65900421
L36: Dec | M36: 62.22662735 | N36: 15.79137058 | O36: 1723.504272 | P36: 14.57040554 | Q36: 34.01036453
L37: Annual | M37: =AVERAGE(M25:M36) -> 26.66861359 | O37: =MAX(O25:O36) -> 1820.124146 | P37: =AVERAGE(P25:P36) -> 7.077267502 | Q37: =MAX(Q25:Q36) -> 34.01036453
K39: =+A8 -> 2025 | L39: mg/Nm3 | M39: Highest daily 95%ile 10-min average | N39: Monthly mean of 10-min averages | O39: Highest 10-min average | P39: Monthly mean of daily averages | Q39: Highest daily average
K40: A3 | L40: Jan | M40: 11.82043171 | N40: 3.840422567 | O40: 1969.124756 | P40: 3.780862379 | Q40: 14.33027554
L41: Feb | M41: 16.3467598 | N41: 3.912088093 | O41: 812.7610474 | P41: 3.621848596 | Q41: 13.02424335
L42: Mar | M42: 11.40649986 | N42: 3.363746068 | O42: 816.8517456 | P42: 3.423847079 | Q42: 7.412443161
L43: Apr | M43: 4.258434772 | N43: 1.939025765 | O43: 313.6182861 | P43: 1.448620001 | Q43: 7.64109993
L44: May | M44: 10.44244576 | N44: 2.765737969 | O44: 678.8181152 | P44: 2.765737956 | Q44: 10.63803482
L45: Jun | M45: 13.18176937 | N45: 3.441791368 | O45: 577.2155151 | P45: 3.321816971 | Q45: 11.17086697
L46: Jul | M46: 9.470500946 | N46: 2.886277763 | O46: 362.8121643 | P46: 2.887013289 | Q46: 13.00043297
L47: Aug | M47: 13.36958981 | N47: 4.417551155 | O47: 2358.036865 | P47: 4.489521151 | Q47: 17.36365318
L48: Sep | M48: 16.63597298 | N48: 3.563431281 | O48: 735.0181885 | P48: 3.57060563 | Q48: 9.975676537
L49: Oct | M49: 6.550429821 | N49: 2.286608957 | O49: 479.4531555 | P49: 2.288538716 | Q49: 7.771500111
L50: Nov | M50: 1.202991009 | N50: 1.687333196 | O50: 855.9360352 | P50: 1.687333218 | Q50: 8.844532013
A51: Comments : | L51: Dec | M51: 0.811259985 | N51: 1.014398277 | O51: 255.642395 | P51: 1.014309388 | Q51: 2.675467014
A52: Environment Agency explanatory note: The 10-minute average ELV is based on the “95th percentile”. In this case this means that 95% of the 10 minute averages in the relevant 24-hour period (i.e. 137) must be below 150 mg/Nm3, and 5% (i.e. 7) are allowed to be any value above 150 mg/Nm3. Whilst we expect operators to minimise CO emissions at all times, it is perfectly acceptable for the value of the maximum 10-minute average to be above 150 mg/Nm3, provided the 95th percentile ELV has been met for that period. | L52: Annual | M52: =AVERAGE(M40:M51) -> 9.624757151 | O52: =MAX(O40:O51) -> 2358.036865 | P52: =AVERAGE(P40:P51) -> 2.858337865 | Q52: =MAX(Q40:Q51) -> 17.36365318
K54: =+A8 -> 2025 | L54: mg/Nm3 | M54: Highest daily 95%ile 10-min average | N54: Monthly mean of 10-min averages | O54: Highest 10-min average | P54: Monthly mean of daily averages | Q54: Highest daily average
K55: A4 | L55: Jan
L56: Feb
L57: Mar
L58: Apr
L59: May
L60: Jun
L61: Jul
L62: Aug
L63: Sep
L64: Oct
L65: Nov
L66: Dec
L67: Annual | M67: =AVERAGE(M55:M66) ->  | O67: =MAX(O55:O66) -> 0 | P67: =AVERAGE(P55:P66) ->  | Q67: =MAX(Q55:Q66) -> 0
K69: =+A8 -> 2025 | L69: mg/Nm3 | M69: 95%ile 10-min avg maximum | N69: Monthly CO 10-min avg mean | O69: 10-min avg maximum | P69: Monthly daily mean | Q69: Monthly daily maximum
K70: A5 | L70: Jan
L71: Feb
L72: Mar
L73: Apr
L74: May
L75: Jun
L76: Jul
L77: Aug
L78: Sep
L79: Oct
L80: Nov
L81: Dec
L82: Annual | M82: =AVERAGE(M70:M81) ->  | O82: =MAX(O70:O81) -> 0 | P82: =AVERAGE(P70:P81) ->  | Q82: =MAX(Q70:Q81) -> 0

Sheet NH3
A1: =+'Cover Page'!$B$29 -> Annual Performance Report 2025 | E1: =+'Cover Page'!$B$33 -> Kent Enviropower Limited
A3: Monitoring of Ammnonia emissions | D3: Whole Installation | G3: See Notes in Cell Q3 | J3: =+A3 -> Monitoring of Ammnonia emissions | N3: Per Combustion Line | Q3: Notes:
Q4: User to add logic to complete Whole installation, Table A5:G18. From the data in Per Combustion Line, Table J6:O79, subject to No. of lines installed
A5: =+'Cover Page'!C39 -> 2025 | B5: 1/2 Hourly Reference Periods | E5: Daily Reference Periods
A6: mg/Nm3 | B6: 1/2 hourly NH3 ELV | C6: Monthly mean of half-hourly averages | D6: Highest half- hourly average | E6: Daily NH3 ELV | F6: Monthly mean of daily averages | G6: Highest daily average | J6: =+A5 -> 2025 | K6: mg/Nm3 | L6: Monthly mean of half-hourly averages | M6: Highest half- hourly average | N6: Monthly mean of daily averages | O6: Highest daily average
A7: Jan | B7: None | C7: =AVERAGE(L7,L22,L37) -> 0.09018568649 | D7: =AVERAGE(M7,M22,M37) -> 5.010976632 | E7: 10 | F7: =AVERAGE(N7,N22,N37) -> 0.08944275239 | G7: =AVERAGE(O7,O22,O37) -> 0.2268689995 | J7: A1 | K7: Jan | L7: 0.03302072731 | M7: 1.512135983 | N7: 0.03302074174 | O7: 0.1006160006
A8: Feb | B8: =+B7 -> None | C8: =AVERAGE(L8,L23,L38) -> 0.1021821165 | D8: 2.102675358 | E8: 10 | F8: =AVERAGE(N8,N23,N38) -> 0.1005822205 | G8: 0.2440986633 | K8: Feb | L8: 0.03160088227 | M8: 0.5784800053 | N8: 0.0309937308 | O8: 0.06675100327
A9: Mar | B9: =+B8 -> None | C9: =AVERAGE(L9,L24,L39) -> 0.08223687502 | D9: 3.93714269 | E9: 10 | F9: =AVERAGE(N9,N24,N39) -> 0.08022361243 | G9: 0.1895803312 | K9: Mar | L9: 0.03262703683 | M9: 8.038579941 | N9: 0.02526960733 | O9: 0.1215640008 | Q9: Whole Installation table A5:G18:
A10: Apr | B10: None | C10: =AVERAGE(L10,L25,L40) -> 0.06991861122 | D10: 1.862923344 | E10: 10 | F10: =AVERAGE(N10,N25,N40) -> 0.06906650366 | G10: 0.176213339 | K10: Apr | L10: 0.04584206611 | M10: 1.725263 | N10: 0.04655289503 | O10: 0.1106780022 | Q10: Mean: for 1/2 hourly and daily periods calculate mean of values across all operational combustion lines for the month
A11: May | B11: None | C11: =AVERAGE(L11,L26,L41) -> 0.08934949737 | D11: 4.459394574 | E11: 10 | F11: =AVERAGE(N11,N26,N41) -> 0.08759529767 | G11: 0.3627789964 | K11: May | L11: 0.05677126346 | M11: 1.99466598 | N11: 0.0567711932 | O11: 0.2019719929
A12: Jun | B12: None | C12: =AVERAGE(L12,L27,L42) -> 0.1330831382 | D12: 9.639124473 | E12: 10 | F12: =AVERAGE(N12,N27,N42) -> 0.1203991143 | G12: 0.3076736555 | K12: Jun | L12: 0.07082342044 | M12: 16.43678474 | N12: 0.04222982134 | O12: 0.09307400137
A13: Jul | B13: None | C13: =AVERAGE(L13,L28,L43) -> 0.1217851922 | D13: 8.898145755 | E13: 10 | F13: =AVERAGE(N13,N28,N43) -> 0.1173510978 | G13: 0.2425646683 | K13: Jul | L13: 0.1012638401 | M13: 20.23741341 | N13: 0.08494311955 | O13: 0.1957509965 | Q13: Maximum: for 1/2 hourly and daily periods use the highest value across all operational combustion lines for the month
A14: Aug | B14: None | C14: =AVERAGE(L14,L29,L44) -> 0.1567373804 | D14: 14.7741309 | E14: 10 | F14: =AVERAGE(N14,N29,N44) -> 0.1551752502 | G14: 0.7682716648 | K14: Aug | L14: 0.1678176498 | M14: 31.72060394 | N14: 0.1696850365 | O14: 1.384418011
A15: Sep | B15: None | C15: =AVERAGE(L15,L30,L45) -> 0.1645275944 | D15: 6.130840937 | E15: 10 | F15: =AVERAGE(N15,N30,N45) -> 0.1519657669 | G15: 0.2903370063 | K15: Sep | L15: 0.1417208001 | M15: 10.90769863 | N15: 0.1176283643 | O15: 0.2709670067
A16: Oct | B16: None | C16: =AVERAGE(L16,L31,L46) -> 0.4541750837 | D16: 4.633689245 | E16: 10 | F16: =AVERAGE(N16,N31,N46) -> 0.4449428615 | G16: 0.831068337 | K16: Oct | L16: 0.6842048502 | M16: 9.014660835 | N16: 0.673097821 | O16: 1.071007967
A17: Nov | B17: None | C17: =AVERAGE(L17,L32,L47) -> 0.6758012015 | D17: 6.642570416 | E17: 10 | F17: =AVERAGE(N17,N32,N47) -> 0.6712441789 | G17: 0.9430193305 | K17: Nov | L17: 0.8843235096 | M17: 11.46238613 | N17: 0.8721660438 | O17: 1.34365499
A18: Dec | B18: None | C18: =AVERAGE(L18,L33,L48) -> 0.693029475 | D18: 5.495562236 | E18: 10 | F18: =AVERAGE(N18,N33,N48) -> 0.6889627763 | G18: 0.9407500029 | K18: Dec | L18: 0.8888264327 | M18: 7.795355797 | N18: 0.8866851815 | O18: 1.332000971
K19: Annual | L19: =AVERAGE(L7:L18) -> 0.2615702066 | M19: =MAX(M7:M18) -> 31.72060394 | N19: =AVERAGE(N7:N18) -> 0.2532536297 | O19: =MAX(O7:O18) -> 1.384418011
J21: =+A5 -> 2025 | K21: mg/Nm3 | L21: Monthly mean of half-hourly averages | M21: Highest half- hourly average | N21: Monthly mean of daily averages | O21: Highest daily average
J22: A2 | K22: Jan | L22: 0.08082812457 | M22: 1.108325005 | N22: 0.08065734787 | O22: 0.1650349945
K23: Feb | L23: 0.0962533615 | M23: 2.65643096 | N23: 0.09453240934 | O23: 0.1689369977
K24: Mar | L24: 0.1044636513 | M24: 2.61345911 | N24: 0.1045173842 | O24: 0.2321289927
K25: Apr | L25: 0.07661415688 | M25: 2.322453022 | N25: 0.07460994822 | O25: 0.167317003
K26: May | L26: 0.1000772999 | M26: 8.557707787 | N26: 0.09481466686 | O26: 0.5092909932
K27: Jun | L27: 0.21137671 | M27: 10.26507568 | N27: 0.205188559 | O27: 0.5017439723
K28: Jul | L28: 0.1634697197 | M28: 4.129982948 | N28: 0.1664838195 | O28: 0.352463007
K29: Aug | L29: 0.1977566222 | M29: 9.702242851 | N29: 0.1923028963 | O29: 0.5664089918
K30: Sep | L30: 0.2246635918 | M30: 4.705169201 | N30: 0.2141746037 | O30: 0.326180011
K31: Oct | L31: 0.3262493212 | M31: 2.591665983 | N31: 0.3100115013 | O31: 0.6246290207
K32: Nov | L32: 0.5097683359 | M32: 3.880369902 | N32: 0.5082547641 | O32: 0.6742290258
K33: Dec | L33: 0.5780333288 | M33: 6.027843952 | N33: 0.5679745018 | O33: 0.8349760175
K34: Annual | L34: =AVERAGE(L22:L33) -> 0.222462852 | M34: =MAX(M22:M33) -> 10.26507568 | N34: =AVERAGE(N22:N33) -> 0.2177935335 | O34: =MAX(O22:O33) -> 0.8349760175
J36: =+A5 -> 2025 | K36: mg/Nm3 | L36: Monthly mean of half-hourly averages | M36: Highest half- hourly average | N36: Monthly mean of daily averages | O36: Highest daily average
J37: A3 | K37: Jan | L37: 0.1567082076 | M37: 12.41246891 | N37: 0.1546501676 | O37: 0.4149560034
K38: Feb | L38: 0.1786921056 | M38: 3.07311511 | N38: 0.1762205213 | O38: 0.4966079891
K39: Mar | L39: 0.109619937 | M39: 1.159389019 | N39: 0.1108838457 | O39: 0.2150480002
K40: Apr | L40: 0.08729961068 | M40: 1.54105401 | N40: 0.08603666772 | O40: 0.2506450117
K41: May | L41: 0.1111999288 | M41: 2.825809956 | N41: 0.1112000329 | O41: 0.3770740032
K42: Jun | L42: 0.1170492841 | M42: 2.215512991 | N42: 0.1137789626 | O42: 0.3282029927
K43: Jul | L43: 0.1006220167 | M43: 2.327040911 | N43: 0.1006263544 | O43: 0.1794800013
K44: Aug | L44: 0.1046378693 | M44: 2.899545908 | N44: 0.1035378179 | O44: 0.3539879918
K45: Sep | L45: 0.1271983912 | M45: 2.77965498 | N45: 0.1240943328 | O45: 0.273864001
K46: Oct | L46: 0.3520710797 | M46: 2.294740915 | N46: 0.3517192621 | O46: 0.7975680232
K47: Nov | L47: 0.6333117591 | M47: 4.584955215 | N47: 0.6333117286 | O47: 0.8111739755
A48: Comments : | K48: Dec | L48: 0.6122286637 | M48: 2.663486958 | N48: 0.6122286454 | O48: 0.6552730203
A49: An indicated ELV value of zero in the table above means that no ammonia limit is/was set in the permit. | K49: Annual | L49: =AVERAGE(L37:L48) -> 0.2242199045 | M49: =MAX(M37:M48) -> 12.41246891 | N49: =AVERAGE(N37:N48) -> 0.2231906949 | O49: =MAX(O37:O48) -> 0.8111739755
J51: =+A5 -> 2025 | K51: mg/Nm3 | L51: Monthly mean of half-hourly averages | M51: Highest half- hourly average | N51: Monthly mean of daily averages | O51: Highest daily average
J52: A4 | K52: Jan
K53: Feb
K54: Mar
K55: Apr
K56: May
K57: Jun
K58: Jul
K59: Aug
K60: Sep
K61: Oct
K62: Nov
K63: Dec
K64: Annual | L64: =AVERAGE(L52:L63) ->  | M64: =MAX(M52:M63) -> 0 | N64: =AVERAGE(N52:N63) ->  | O64: =MAX(O52:O63) -> 0
J66: =+A5 -> 2025 | K66: mg/Nm3 | L66: Monthly mean of half-hourly averages | M66: Highest half- hourly average | N66: Monthly mean of daily averages | O66: Highest daily average
J67: A5 | K67: Jan
K68: Feb
K69: Mar
K70: Apr
K71: May
K72: Jun
K73: Jul
K74: Aug
K75: Sep
K76: Oct
K77: Nov
K78: Dec
K79: Annual | L79: =AVERAGE(L67:L78) ->  | M79: =MAX(M67:M78) -> 0 | N79: =AVERAGE(N67:N78) ->  | O79: =MAX(O67:O78) -> 0

Sheet Template changes log
A1: Log of changes to template (Environment Agency use only)
A3: Date | B3: Description of change | C3: New version number and date
A4: 2024-01-16 | B4: Air (periodic) tab: corrected default O2 reference from 6 to 11% | C4: Version 23.5a (for incinerators) - 16/01/2024
A5: 2024-09-23 | B5: Air (periodic) tab: corrected symbol for Thallium to Tl
A6: 2024-09-23 | B6: Air (periodic) tab: removed last year's references to different emission limit values applying from 03/12/23 and updated all relevant ELVs
A7: 2024-09-23 | B7: Tabs for continuously monitored pollutants (HCl, SO2 etc.): changed terminology in table headings to improve clarity
A8: 2024-09-23 | B8: Tabs for continuously monitored pollutants (HCl, SO2 etc.): removed last year's references to different emission limit values applying from 03/12/23 and updated all relevant ELVs
A9: 2024-09-23 | B9: Perf 1 tab: updated formula for water usage to report m3 rather than litres and corrected error with formula copying operator name
A10: 2024-09-23 | B10: Operational Summary tab: table added on start-ups and shut-downs
A11: 2024-09-23 | B11: Operational Summary tab: table added on dioxins and mercury protocols
A12: 2024-09-23 | B12: Operational Summary tab: table added on AST, QAL 2 and calibration functions
A13: 2024-09-23 | B13: CO2 N2O tab: various changes made to notes to reflect the fact that most plants should now have calibrated CEMS and flow meters + some have C14 samplers and more up to date industry data | C13: Version 24a (for incinerators) - 23/09/24
A14: 2024-11-08 | B14: CO2 N2O tab: Changed the N2O CO2 equivalence factor from 298 to 265 in line with recently updated government greenhouse gas figures: https://www.gov.uk/government/publications/greenhouse-gas-reporting-conversion-factors-2024
A15: 2024-11-08 | B15: CO2 N2O tab: Added an additional requirement for municipal EfW plants to state the yearly average biogenic percentage of the waste by mass, and reference to a document which sets out a methodology for calculating NCV of waste from the results of C14 sampling.
A16: 2024-11-08 | B16: Permit Compliance tab: Two additional columns added + explanatory notes to the table entitled "Summary of non-compliances under the permit" to allow CCS scores to be stated where relevant.
A17: 2024-11-08 | B17: Residue Quality tab: Note added explaining application of TOC and LOI limits and asking operators to report both metrics where measured. | C17: Version 24.1a (for incinerators) - 08/11/24
A18: 2024-11-27 | B18: Operational Summary tab: table added on start-ups and shut-downs | C18: Version 24.2a (for incinerators) - 27/11/24
A19: 2025-11-27 | B19: Cover Page: Print as PDF and Print Report and pdf buttons deleted and blank columns removed; contents page deleted | C19: Version 25.1a (for incinerators) - 27/11/25
A20: 2025-11-27 | B20: Residue Quality tab renamed to "Residues", and Summary of residue handling table moved from Operational Summary tab to Residues tab.
A21: 2025-11-27 | B21: Various changes made to the Operational Data tab including • Reformatting of the rows under the Operational data heading (Rows 3-8) to make it clearer what information is required. • Amendment of the rows under the Energy Usage / Export heading (Rows 26-32) to calculate an “indicative parasitic load” (now excluding energy imported) • Amendment of the unit for gas usage from cubic feet to cubic metres (Row 50) • Some amendments to the first 2 notes and other minor edits • Deleted "Overall Availability, mean avg. of all lines, hrs" row
A22: 2025-11-27 | B22: Operational Summary tab: Note added requiring all emergency shut-downs be listed, irrespective of whether or not they were reportable.
A23: 2025-11-27 | B23: CO2 N2O tab: Note added to ask operators to ensure that relevant data reported here matches that which will be submitted under the Pollution Inventory
